Workbook

Sheet Ficha Mejoramiento Sist Riego (hidden)
B2: FICHA TÉCNICA - MEJORAMIENTO DE SISTEMA DE RIEGO SIMPLIFICADO - RIEGO TECNIFICADO
B3: (La información registrada en esta ficha tiene carácter de Declaración Jurada)
B6: I. ASPECTOS GENERALES
B8: 1. CÓDIGO DEL PROYECTO | G8: 245545
B10: 2. NOMBRE DEL PROYECTO DE INVERSIÓN
B11: MEJORAMIENTO DEL SERVICIO DE AGUA A NIVEL PARCELARIO CON UN SISTEMA DE RIEGO TECNIFICADO EN EL SECTOR “SAN LUIS” – DISTRITO DE LOCROJA – CHURCAMPA – HUANCAVELICA
B13: 3. RESPONSABILIDAD FUNCIONAL
B15: FUNCIÓN | E15: AGROPECUARIA
B16: DIVISIÓN FUNCIONAL | E16: RIEGO
B17: GRUPO FUNCIONAL | E17: RIEGO TECNIFICADO
B18: RESPONSABLE FUNCIONAL | E18: AGRICULTURA Y RIEGO
B20: 4. UNIDAD FORMULADORA
B22: SECTOR | E22: GOBIERNOS LOCALES
B24: PLIEGO | E24: MUNICIPALIDAD DISTRITAL DE LOCROJA
B26: NOMBRE | E26: UNIDAD FORMULADORA DE DESARROLLO SOCIAL Y ECONÓMICO
B28: Persona Responsable de Formular la Ficha Técnica | E28: CARLOS NATIVIDAD TORERO | H28: PROFESION: | I28: ING. AGRICOLA
B30: Persona Responsable de la Unidad Formuladora | E30: LUIS LIVORA CANTELLA | H30: PROFESION: | I30: ING. AGRÍCOLA
B33: 5. UNIDAD EJECUTORA DE INVERSIÓN RECOMENDADA
B35: Pertenece a: (Elegir la Unidad Ejecutora y llenar solo el punto que corresponda)
B37: Gobierno Nacional/Regional | E37: Sector | I37: Unidad Ejecutora
B40: Gobierno Provincial | E40: Departamento | I40: Unidad Ejecutora
B43: Gobierno Distrital | E43: Departamento | I43: Distrito | J43: Unidad Ejecutora
E44: HUANCAVELICA | I44: LOCROJA | J44: MUNICIPALIDAD DISTRITAL DE LOCROJA
B46: Persona Responsable de la Unidad Ejecutora | E46: ING. JUAN PORTILLA CUETO
B48: Organo Técnico Responsable | E48: GERENCIA DE INFRAESTRUCTURA Y OBRAS PÚBLICAS
B51: 6. UBICACIÓN Y ACCESOS
B53: 6.1. Ubicación Política
B55: REGIÓN | E55: HUANCAVELICA
B56: PROVINCIA | E56: CHURCAMPA
B57: DISTRITO | E57: LOCROJA
B58: LOCALIDAD | E58: CENTRO POBLADO SAN LUIS
B60: 6.2. Ubicación Geográfica
B62: COORDENADAS UTM (m) | C62: (WGS84) | E62: ESTE | F62: 657259 | G62: NORTE | H62: 9406136 | I62: ZONA | J62: 18 - M
B63: ALTURA (msnm) | E63: 2542
B64: REGIÓN NATURAL | E64: Sierra
B66: 6.3. Ubicación Hidrografica
B68: Vertiente | C68: Pacifico | E68: Cuenca | F68: Mantaro | H68: Microcuenca | I68: Churcampa
B70: 6.4. Vias de acceso al proyecto
B72: Tramo (DE) | C72: Tramo (HASTA) | D72: Distancia (km) | E72: Tiempo (Horas) | F72: Tipo de vía | G72: Estado
B73: Lima | C73: Huancayo | D73: 300 | E73: 7 | F73: Asfaltado | G73: B
B74: Huancayo | C74: Churcampa | D74: 120 | E74: 5 | F74: Asfaltado - Afirmado | G74: R
B75: Churcampa | C75: San Luis | D75: 50 | E75: 1 | F75: Afirmado | G75: R
B76: San Luis | C76: Proyecto | D76: 15 | E76: 0.5 | F76: Trocha carrozable | G76: M
B77: Valores posibles para el Estado: (B) bueno, (R) regular, (M) malo
B79: II. DEFINICIÓN DEL PROBLEMA Y OBJETIVOS
B81: 7. DESCRIPCIÓN DE LA SITUACIÓN ACTUAL
B83: 7.1. Administración del Agua con Fines Agrícolas
B85: ORGANIZACIÓN FORMALIZADA POR LA ANA | E85: Si ( ) No ( ) | P85: EXPLICAR / PROFUNDIZAR - DGIAR
B86: AUTORIDAD ADMINISTRATIVA DEL AGUA (AAA) | E86: HUANCAVELICA
B87: AUTORIDAD LOCAL DEL AGUA (ALA) | E87: HUANCAVELICA
B88: JUNTA DE USUARIOS | E88: HUANCAVELICA
B89: COMISIÓN DE USUARIOS | E89: 7 PAGOS
B90: COMITÉ DE USUARIOS | E90: SAN LUIS
B91: OTROS | P91: EXPLICAR / PROFUNDIZAR - DGIAR
B93: 7.2 Fuente Hídrica
B95: Fuente | C95: Nombre | D95: Ubicación geográfica UTM WGS84
D96: Este | E96: Norte | F96: Zona | G96: Altitud (m.s.n.m)
B97: Rio
B98: Canal | C98: San Luis | D98: 657278 | E98: 9406140 | F98: 18 - M | G98: 2595
B99: Manantial (Puquial)
B100: Quebrada
B101: Pozo
B102: Otros:
B104: 7.3. Acreditación Hídrica
B106: DOCUMENTO DE ACREDITACIÓN HÍDRICA | E106: LICENCIA | F106: X | H106: ACREDITACIÓN
B107: DOCUMENTO DE LA ANA QUE SUSTENTA LA ACREDITACIÓN | E107: Resolución Administrativa N° 007-2015-ALA-HUANCAVELICA
B109: 7.3. Descripción de la Situación Actual
B111: CAUDAL DE LA FUENTE AUTORIZADO | E111: 15 | F111: l/s
B112: VOLUMEN DE LA FUENTE AUTORIZADO | E112: 150000 | F112: m3/año
B113: ÁREA DE RIEGO A BENEFICIAR | E113: 20 | F113: ha
B114: NÚMERO DE USUARIOS BENEFICIADOS | E114: 12 | F114: agricultores
B115: MÉTODO DE RIEGO A NIVEL PARCELARIO | E115: GRAVEDAD | F115: X | G115: PRESURIZADO | I115: TIPO | J115: SURCO
B116: EFICIENCIA DE APLICACIÓN SIN PROYECTO (%) | E116: 0.3 | G116: EXPLICAR / PROFUNDIZAR - DGIAR
B118: 7.3. Características de la Producción Agrícola - Situación Actual
B120: CÉDULA DE CULTIVO ACTUAL | E120: PASTOS | F120: ALFALFA
B121: RENDIMIENTO DEL CULTIVO Kg/ha | E121: 15000 | F121: 15000
B122: PRECIO EN CHACRA (Soles/Kg) | E122: 0.2 | F122: 0.2
B123: COSTO DE PRODUCCION (Soles/ha) | E123: 1800 | F123: 2000
B124: DESTINO DE LA PRODUCCIÓN | E124: AUTOCONSUMO | F124: 0.3 | G124: MDO. LOCAL / REGIONAL | H124: 0.7 | I124: MDO. EXPORTACION
B126: 7.5 Aspectos Sociales*
B128: ¿Existen conflictos por la distribución del agua? | F128: SI ( ) NO ( )
B129: ¿Pertenece a una zona de mesa de dialogo? | F129: SI ( ) NO ( ) | H129: EXPLICAR / PROFUNDIZAR - DGIAR
B130: ¿Existen conflictos por los accesos? | F130: SI ( ) NO ( )
B131: ¿Existen personas que estan en desacuerdo con el proyecto? | F131: SI ( ) NO ( )
B133: * Fuente: Talleres, asambleas participativos desarrollados en el ambito del Proyecto
B135: 8. PROBLEMA CENTRAL Y SUS CAUSAS
B137: Descripción del Problema Central
B138: Baja productividad agrícola en el ámbito de la JU Huancavelica – Sector San Luis – Distrito de Locroja – Churcampa – Huancavelica
B140: Nº | C140: Descripción de las Principales Causas | F140: Causas Indirectas
B141: Causa 1 | C141: Ineficiencias en el uso del recurso hídrico | F141: i. Uso deficiente de técnicas de riego por gravedad (inundación, surco, etc.) ii. Poco conocimiento de técnicas de riego de mayor eficiencia
B142: Causa 2 | C142: Inadecuada disponibilidad del recurso hídrico | F142: i. Insuficiente infraestructura hidráulica ii. Inadecuada conservación de la infraestructura hidráulica iii. Poca capacidad de gestión del recurso hídrico entre usuarios
B144: 9. OBJETIVO Y MEDIOS FUNDAMENTALES
B146: 9.1. Objetivo
B148: Descripción del Objetivo Central
B149: Incremento de la productividad agrícola en el ámbito de la JU Huancavelica – Sector San Luis – Distrito de Locroja – Churcampa – Huancavelica
B151: 9.2. Medios Fundamentales
B153: N° | C153: Descripción Medios Fundamentales
B154: 1 | C154: Utilización de técnicas de riego presurizado
B155: 2 | C155: Mayor conocimiento de técnicas de riego más eficientes
B157: 10. DESCRIPCIÓN DE LA ALTERNATIVA DE SOLUCIÓN AL PROBLEMA
B159: 10.1. Alternativa de Solución Propuesta
B161: MÉTODO DE RIEGO A NIVEL PARCELARIO | E161: TECNIFICADO A GRAVEDAD | G161: PRESURIZADO | H161: X | I161: TIPO | J161: ASPERSIÓN - FIJO
B162: EFICIENCIA DE APLICACIÓN SIN PROYECTO (%) | E162: 0.75
B164: 10.2. Descripción de la Alternativa de Solución Propuesta
B166: Descripción de la Propuesta | D166: Componentes (Resultados necesarios para lograr el Objetivo) | G166: Acciones Necesarias para lograr cada Resultado
B167: PLANTEAMIENTO Se captará el agua del canal Rumichaca (progresiva 0+390), con un caudal de 15 l/s. A partir de este punto se conducirá el agua mediante una tubería de PVC hasta un desarenador. De la estructura de sedimentación se almacenará el agua en un reservorio revestido de geomembrana PVC 1.0 mm. Desde este punto se irrigarán un total de 20 ha mediante el sistema de riego por aspersión. | D167: COMPONENTE 01: Instalación de un sistema de riego por aspersión utilizando agua superficial. | G167: Mejoramiento de la toma lateral en el canal y desarenador en concreto armado
G168: Construcción de un reservorio revestido de geomembrana de PVC de 1.0 mm, de 1,500 m3 de capacidad neta, más obras complementarias
G169: Construcción del sistema entubado de conducción y distribución de PVC
G170: Instalación de un sistema de riego parcelario por aspersión fijo para 20 ha
D171: COMPONENTE 02: Capacitación en operación y mantenimiento de sistemas de riego tecnificado. | G171: Módulos de capacitación en operación y mantenimiento de sistemas de riego tecnificado
D174: COMPONENTE 03: Asistencia tecnica en prácticas agrícolas en parcelas con sistemas de riego tecnificado. | G174: Módulos de capacitación en prácticas agrícolas en parcelas con sistemas de riego tecnificado
B178: 10.3. Características de la Producción Agrícola - Situación Con Proyecto
B180: CÉDULA DE CULTIVO ACTUAL | E180: PASTOS | F180: ALFALFA
B181: RENDIMIENTO DEL CULTIVO Kg/ha | E181: 20000 | F181: 25000
B182: PRECIO EN CHACRA (Soles/Kg) | E182: 0.2 | F182: 0.2
B183: COSTO DE PRODUCCION (Soles/ha) | E183: 2000 | F183: 2200
B184: DESTINO DE LA PRODUCCIÓN | E184: AUTOCONSUMO | F184: 0.2 | G184: MDO. LOCAL / REGIONAL | H184: 0.8 | I184: MDO. EXPORTACION
B186: III. CUANTIFICACIÓN DE SU CONTRIBUCIÓN AL CIERRE DE BRECHAS
B188: 11. CONTRIBUCIÓN AL CIERRE DE BRECHAS
B190: Brecha | E190: Unida de Medida | G190: Brecha Nacional | I190: Contribución al Cierre de Brecha
B191: Área Bajo Riego Sin Riego Tecnificado | E191: ha | G191: 1590546 | I191: 20
B194: IV. FORMULACION Y EVALUACION
B196: 12. HORIZONTE DE EVALUACIÓN (*)
B197: Número de Años del Horizonte de Evaluación | E197: 10 AÑOS
B199: Sustento Técnico del Horizonte de Evaluación Elegido
B200: El horizonte de evaluación del proyecto está asociado al tiempo de vida útil de los materiales e insumos que se utilizarán en la infraestructura.
B204: 13. ANÁLISIS DE LA DEMANDA (*)
B206: Nivel de Servicio | D206: Unidad de Medida | E206: ENE | F206: FEB | G206: MAR | H206: ABR | I206: MAY | J206: JUN
B207: Demanda Hídrica Con Proyecto | D207: m3 | E207: =+Demanda!F56 -> 9510.8 | F207: =+Demanda!G56 -> 860.8 | G207: =+Demanda!H56 -> 3037.333333 | H207: =+Demanda!I56 -> 10637 | I207: =+Demanda!J56 -> 16354.8 | J207: =+Demanda!K56 -> 15785 | K207: =+[1]Hoja1!L150 ->  | L207: =+[1]Hoja1!M150 ->  | M207: =+[1]Hoja1!N150 ->  | N207: =+[1]Hoja1!O150 ->  | O207: =+[1]Hoja1!P150 -> 
D209: Unidad de Medida | E209: JUL | F209: AGO | G209: SEP | H209: OCT | I209: NOV | J209: DIC
D210: m3 | E210: =+Demanda!L56 -> 17718.66667 | F210: =+Demanda!M56 -> 20378.22667 | G210: =+Demanda!N56 -> 15615 | H210: =+Demanda!O56 -> 6621.333333 | I210: =+Demanda!P56 -> 14442 | J210: =+Demanda!Q56 -> 5786
B212: Enunciar los principales parámetros y supuestos considerados para la proyección de la demanda
B213: Para el cálculo de la demanda hídrica se han considerado los datos de: evapotranspiración potencial, el Kc de los cultivos propuestos, la precipitación efectiva, la eficiencia de aplicación, el área del proyecto. Como supuesto se asume que la cédula de cultivo y el área bajo riego es constante en el tiempo, y se mantienen las condiciones meteorológicas de la zona de estudio.
B217: 14. ANÁLISIS DE LA OFERTA (*)
B219: Nivel de Servicio | D219: Unidad de Medida | E219: ENE | F219: FEB | G219: MAR | H219: ABR | I219: MAY | J219: JUN | L219: Año 8 | M219: Año 9 | N219: Año 10 | O219: mensual
B220: Oferta Hídrica Con Proyecto | D220: m3 | E220: =+Oferta!G15 -> 38880 | F220: =+Oferta!H15 -> 38880 | G220: =+Oferta!I15 -> 38880 | H220: =+Oferta!J15 -> 25920 | I220: =+Oferta!K15 -> 25920 | J220: =+Oferta!L15 -> 25920 | K220: =+[1]Hoja2!M116 ->  | L220: =+[1]Hoja2!N116 ->  | M220: =+[1]Hoja2!O116 ->  | N220: =+[1]Hoja2!P116 ->  | O220: =+[1]Hoja2!Q116 -> 
D222: Unidad de Medida | E222: JUL | F222: AGO | G222: SEP | H222: OCT | I222: NOV | J222: DIC
D223: m3 | E223: =+Oferta!M15 -> 25920 | F223: =+Oferta!N15 -> 25920 | G223: =+Oferta!O15 -> 25920 | H223: =+Oferta!P15 -> 25920 | I223: =+Oferta!Q15 -> 38880 | J223: =+Oferta!R15 -> 38880
B225: Describir los factores de producción que determinan la oferta actual del servicio. Enunciar los principales parámetros y supuestos considerados para la proyección de la oferta.
B227: Para el cálculo de la oferta hídrica se han considerado los datos de: caudal ofertado por la fuente hídrica (autorizada por la ANA - acreditacion o licencia), el tiempo de riego, la frecuencia de riego, el área del proyecto. Como supuesto se asume que el área bajo riego es constante en el tiempo, y se mantienen los regímenes de oferta hídrica por parte de la organización de usuarios de agua.
B231: 15. BALANCE OFERTA - DEMANDA
B233: Nivel de Servicio | D233: Unidad de Medida | E233: ENE | F233: FEB | G233: MAR | H233: ABR | I233: MAY | J233: JUN | L233: Año 8 | M233: Año 9 | N233: Año 10 | O233: mensual
B234: Balance Hídrico Con Proyecto | D234: m3 | E234: =+E220-E207 -> 29369.2 | F234: 38019.2 | G234: 35842.66667 | H234: 15283 | I234: 9565.2 | J234: 10135 | L234: =+L220-L207 ->  | M234: =+M220-M207 ->  | N234: =+N220-N207 -> 
D236: Unidad de Medida | E236: JUL | F236: AGO | G236: SEP | H236: OCT | I236: NOV | J236: DIC
D237: m3 | E237: =+E223-E210 -> 8201.333333 | F237: 5541.773333 | G237: 10305 | H237: 19298.66667 | I237: 24438 | J237: 33094
B239: 16. COSTOS DEL PROYECTO
B241: 16.1 Modalidad de Ejecución
B243: Nº | C243: TIPO DE EJECUCIÓN | H243: SELECCIONADO
B244: 1 | C244: ADMINISTRACIÓN DIRECTA
B245: 2 | C245: ADMINISTRACIÓN INDIRECTA – POR CONTRATA
B246: 3 | C246: ADMINISTRACIÓN INDIRECTA – ASOCIACIÓN PÚBLICA PRIVADO (APP)
B247: 4 | C247: ADMINISTRACIÓN INDIRECTA - LEY N° 28585 PRT | H247: X
B248: 5 | C248: ADMINISTRACIÓN INDIRECTA – NÚCLEO EJECUTOR
B249: 6 | C249: ADMINISTRACIÓN INDIRECTA – ley 29230 (OBRAS POR IMPUESTOS)
B251: 16.2 Costos de Inversión de la Alternativa Seleccionada (a precios de mercado en Soles)
B253: Principales Rubros | E253: Unidad de Medida | F253: Cantidad | G253: Costo Unitario | H253: Costo Parcial | I253: Obras Comunes | J253: Obras Parcelarias
B254: Expediente Técnico | E254: Estudio | F254: 1 | G254: =+E113*1000 -> 20000 | H254: =+G254*F254 -> 20000 | I254: =+H254 -> 20000
B255: Costo Directo | H255: =+H256+H257+H258 -> 444000
B256: Componente 01 RIEGO TECNIFICADO | E256: Obra | F256: 1 | G256: =+E113*20000 -> 400000 | H256: =+G256*F256 -> 400000 | I256: =+H256*0.7 -> 280000 | J256: =+H256*0.3 -> 120000
B257: Componente 02 CAPACITACION | E257: Global | F257: 1 | G257: =+E113*1000 -> 20000 | H257: =+G257*F257 -> 20000 | I257: =+H257 -> 20000
B258: Componente 03 ASISTENCIA TECNICA | E258: Global | F258: 1 | G258: =+E114*2000 -> 24000 | H258: =+G258*F258 -> 24000 | I258: =+H258 -> 24000
B259: Costo Indirecto | H259: =+H260+H261+H262+H263 -> 117000
B260: Gastos Generales | E260: Global | F260: 1 | G260: =+G256*0.08 -> 32000 | H260: =+G260 -> 32000 | I260: =+H260 -> 32000
B261: Gatos de Gestión (IGA - CIRA - PMA - Otros) | E261: Global | F261: 1 | G261: 20000 | H261: =+G261 -> 20000 | I261: 20000
B262: Utilidad | E262: Global | F262: 1 | G262: =+G256*0.12 -> 48000 | H262: 48000 | I262: 48000
B263: Supervisión | E263: Global | F263: 1 | G263: =+E113*850 -> 17000 | H263: 17000 | I263: =+H263*0.7 -> 11900 | J263: =+H263*0.3 -> 5100
B264: Sub Total (ET + CD + CI) | H264: =+H254+H255+H259 -> 581000
B265: IGV | E265: Global | H265: =0.18*H264 -> 104580 | I265: =+H265 -> 104580
B266: Costo Total del Proyecto | H266: =+H264+H265 -> 685580 | I266: =SUM(I254:I265) -> 560480 | J266: =SUM(J254:J265) -> 125100 | K266: 0 | L266: 0 | M266: 0 | N266: 0 | O266: 0
B269: COSTO DE INVERSION POR HECTÁREA BENEFICIADA (Soles/ha) | E269: =+H266/E113 -> 34279
B270: APORTE REFERENCIAL DE LOS BENEFICIARIOS (S/.) | E270: =+J266*0.2 -> 25020
B271: COSTOS DE REPOSICIÓN (Soles) | E271: =+H256*0.05 -> 20000
B272: AÑO DE APLIACIÓN DEL COSTO DE REPOSICIÓN | E272: 5
B274: 16.3 Costos de Operación y Mantenimiento Sin Proyecto
B275: 16.3.1 COSTOS DE OPERACIÓN
B276: Items de gasto | D276: Año 1 | E276: Año 2 | F276: Año 3 | G276: Año (…) | H276: Año 8 | I276: Año 9 | J276: Año 10 | L276: Año 8 | M276: Año 9 | N276: Año 10
B277: Personal (*) | D277: 10830 | E277: =+D277 -> 10830 | F277: 10830 | G277: 10830 | H277: 10830 | I277: 10830 | J277: 10830 | L277: =+J277 -> 10830 | M277: =+L277 -> 10830 | N277: =+M277 -> 10830
B278: Equipos (*)
B279: Insumos (*)
B280: Servicios (*)
B281: Combustibles (*)
B282: Otros(*) | D282: 570 | E282: =+D282 -> 570 | F282: 570 | G282: 570 | H282: 570 | I282: 570 | J282: 570 | L282: =+J282 -> 570 | M282: =+L282 -> 570 | N282: =+M282 -> 570
B283: Total a precios de mercado | D283: 11400 | E283: =+E277+E282 -> 11400 | F283: 11400 | G283: 11400 | H283: 11400 | I283: 11400 | J283: 11400 | L283: =+L277+L282 -> 11400 | M283: =+M277+M282 -> 11400 | N283: =+N277+N282 -> 11400
B284: Total a precios sociales (*) | D284: =+D277*#REF!+D282*#REF! ->  | E284: =+D284 ->  | H284: =+E284 ->  | I284: =+#REF! ->  | J284: =+I284 ->  | K284: =+#REF! ->  | L284: =+K284 ->  | M284: =+L284 -> 
B286: 16.3.2 COSTOS DE MANTENIMIENTO
B287: Items de gasto | D287: Año 1 | E287: Año 2 | F287: Año 3 | G287: Año (…) | H287: Año 8 | I287: Año 9 | J287: Año 10
B288: Personal (*) | D288: 10830 | E288: =+D288 -> 10830 | F288: 10830 | G288: 10830 | H288: 10830 | I288: 10830 | J288: 10830
B289: Equipos (*)
B290: Insumos (*)
B291: Servicios (*)
B292: Combustibles (*)
B293: Otros(*) | D293: 570 | E293: =+D293 -> 570 | F293: 570 | G293: 570 | H293: 570 | I293: 570 | J293: 570
B294: Total a precios de mercado | D294: 11400 | E294: =+E288+E293 -> 11400 | F294: 11400 | G294: 11400 | H294: 11400 | I294: 11400 | J294: 11400
B297: 16.4 Costos de Operación y Mantenimiento Con Proyecto
B298: 16.4.1 COSTOS DE OPERACIÓN
B299: Items de gasto | D299: Año 1 | E299: Año 2 | F299: Año 3 | G299: Año (…) | H299: Año 8 | I299: Año 9 | J299: Año 10 | L299: Año 8 | M299: Año 9 | N299: Año 10
B300: Personal (*) | D300: 30260 | E300: =+D300 -> 30260 | F300: 30260 | G300: 30260 | H300: 30260 | I300: 30260 | J300: 30260 | L300: =+J300 -> 30260 | M300: =+L300 -> 30260 | N300: =+M300 -> 30260
B301: Equipos (*)
B302: Insumos (*) | D302: 3560 | E302: =+D302 -> 3560 | F302: 3560 | G302: 3560 | H302: 3560 | I302: 3560 | J302: 3560 | L302: =+J302 -> 3560 | M302: =+L302 -> 3560 | N302: =+M302 -> 3560
B303: Servicios (*)
... 86 more rows

Sheet Kc (hidden)
C2: DETERMINACIÓN DEL Kc PONDERADO - SIN PROYECTO
C4: CÉDULA DE CULTIVO
C6: CULTIVOS | D6: ÁREA (ha)
D7: ENE | E7: FEB | F7: MAR | G7: ABR | H7: MAY | I7: JUN | J7: JUL | K7: AGO | L7: SEP | M7: OCT | N7: NOV | O7: DIC
C8: Maiz Amarillo Duro | G8: 5 | H8: 5 | I8: 5 | J8: 5 | K8: 5
C9: Papa | D9: 5 | E9: 5 | M9: 5 | N9: 5 | O9: 5
C10: Alfalfa | D10: 15 | E10: 15 | F10: 15 | G10: 15 | H10: 15 | I10: 15 | J10: 15 | K10: 15 | L10: 15 | M10: 15 | N10: 15 | O10: 15
C12: SUBTOTAL | D12: =SUM(D8:D11) -> 20 | E12: =SUM(E8:E11) -> 20 | F12: 15 | G12: 20 | H12: 20 | I12: 20 | J12: 20 | K12: 20 | L12: 15 | M12: 20 | N12: 20 | O12: 20
C15: DETERMINACIÓN DEL Kc PONDERADO
C17: CULTIVOS | D17: Kc
D18: ENE | E18: FEB | F18: MAR | G18: ABR | H18: MAY | I18: JUN | J18: JUL | K18: AGO | L18: SEP | M18: OCT | N18: NOV | O18: DIC
C19: =+C8 -> Maiz Amarillo Duro | G19: 0.5 | H19: 0.5 | I19: 1.15 | J19: 1.15 | K19: 0.75
C20: =+C9 -> Papa | D20: 1.1 | E20: 0.8 | M20: 0.4 | N20: 0.75 | O20: 1.15
C21: =+C10 -> Alfalfa | D21: 1 | E21: 1 | F21: 1 | G21: 1 | H21: 1 | I21: 1 | J21: 1 | K21: 1 | L21: 1 | M21: 1 | N21: 1 | O21: 1
C23: Kc PONDERADO | D23: =+(D8*D19+D9*D20+D10*D21+D11*D22)/D12 -> 1.025 | E23: =+(E8*E19+E9*E20+E10*E21+E11*E22)/E12 -> 0.95 | F23: =+(F8*F19+F9*F20+F10*F21+F11*F22)/F12 -> 1 | G23: 0.875 | H23: 0.875 | I23: 1.0375 | J23: 1.0375 | K23: 0.9375 | L23: 1 | M23: 0.85 | N23: 0.9375 | O23: 1.0375
C28: DETERMINACIÓN DEL Kc PONDERADO - CON PROYECTO
C30: ASPERSIÓN
C32: CÉDULA DE CULTIVO
C34: CULTIVOS | D34: ÁREA (ha)
D35: ENE | E35: FEB | F35: MAR | G35: ABR | H35: MAY | I35: JUN | J35: JUL | K35: AGO | L35: SEP | M35: OCT | N35: NOV | O35: DIC
C36: Quinua | G36: 5 | H36: 5 | I36: 5 | J36: 5 | K36: 5 | L36: 5
C37: Arverja | D37: 5 | E37: 5 | N37: 5 | O37: 5
C38: Alfalfa | D38: 10 | E38: 10 | F38: 10 | G38: 10 | H38: 10 | I38: 10 | J38: 10 | K38: 10 | L38: 10 | M38: 10 | N38: 10 | O38: 10
C41: SUBTOTAL | D41: =SUM(D36:D40) -> 15 | E41: =SUM(E36:E40) -> 15 | F41: 10 | G41: 15 | H41: 15 | I41: 15 | J41: 15 | K41: 15 | L41: 15 | M41: 10 | N41: 15 | O41: 15
C44: DETERMINACIÓN DEL Kc PONDERADO
C46: CULTIVOS | D46: Kc
D47: ENE | E47: FEB | F47: MAR | G47: ABR | H47: MAY | I47: JUN | J47: JUL | K47: AGO | L47: SEP | M47: OCT | N47: NOV | O47: DIC
C48: =+C36 -> Quinua | G48: 0.65 | H48: 0.7 | I48: 0.75 | J48: 0.8 | K48: 0.83 | L48: 0.75
C49: =+C37 -> Arverja | D49: 1.05 | E49: 0.7 | N49: 0.7 | O49: 1
C50: =+C38 -> Alfalfa | D50: 1 | E50: 1 | F50: 1 | G50: 1 | H50: 1 | I50: 1 | J50: 1 | K50: 1 | L50: 1 | M50: 1 | N50: 1 | O50: 1
C53: Kc PONDERADO | D53: =+(D36*D48+D37*D49+D38*D50+D39*D51+D40*D52)/D41 -> 1.016666667 | E53: =+(E36*E48+E37*E49+E38*E50+E39*E51+E40*E52)/E41 -> 0.9 | F53: =+(F36*F48+F37*F49+F38*F50+F39*F51+F40*F52)/F41 -> 1 | G53: 0.8833333333 | H53: 0.9 | I53: 0.9166666667 | J53: 0.9333333333 | K53: 0.9433333333 | L53: 0.9166666667 | M53: 1 | N53: 0.9 | O53: 1
C56: GOTEO
C58: CÉDULA DE CULTIVO
C60: CULTIVOS | D60: ÁREA (ha)
D61: ENE | E61: FEB | F61: MAR | G61: ABR | H61: MAY | I61: JUN | J61: JUL | K61: AGO | L61: SEP | M61: OCT | N61: NOV | O61: DIC
C62: Palto | D62: 5 | E62: 5 | F62: 5 | G62: 5 | H62: 5 | I62: 5 | J62: 5 | K62: 5 | L62: 5 | M62: 5 | N62: 5 | O62: 5
C67: SUBTOTAL | D67: =SUM(D62:D66) -> 5 | E67: =SUM(E62:E66) -> 5 | F67: 5 | G67: 5 | H67: 5 | I67: 5 | J67: 5 | K67: 5 | L67: 5 | M67: 5 | N67: 5 | O67: 5
C70: DETERMINACIÓN DEL Kc PONDERADO
C72: CULTIVOS | D72: Kc
D73: ENE | E73: FEB | F73: MAR | G73: ABR | H73: MAY | I73: JUN | J73: JUL | K73: AGO | L73: SEP | M73: OCT | N73: NOV | O73: DIC
C74: =+C62 -> Palto | D74: 0.65 | E74: 0.6 | F74: 0.6 | G74: 0.65 | H74: 0.65 | I74: 0.7 | J74: 0.75 | K74: 0.75 | L74: 0.83 | M74: 0.8 | N74: 0.75 | O74: 0.7
C79: Kc PONDERADO | D79: =+(D62*D74+D63*D75+D64*D76+D65*D77+D66*D78)/D67 -> 0.65 | E79: =+(E62*E74+E63*E75+E64*E76+E65*E77+E66*E78)/E67 -> 0.6 | F79: =+(F62*F74+F63*F75+F64*F76+F65*F77+F66*F78)/F67 -> 0.6 | G79: 0.65 | H79: 0.65 | I79: 0.7 | J79: 0.75 | K79: 0.75 | L79: 0.83 | M79: 0.8 | N79: 0.75 | O79: 0.7

Sheet Ficha Automática (hidden)
B2: FICHA TÉCNICA - MEJORAMIENTO DE SISTEMA DE RIEGO SIMPLIFICADO - RIEGO TECNIFICADO
B3: (La información registrada en esta ficha tiene carácter de Declaración Jurada)
B5: I. ASPECTOS GENERALES
B7: 1. RESPONSABILIDAD FUNCIONAL
B9: FUNCIÓN | E9: AGROPECUARIA
B10: DIVISIÓN FUNCIONAL | E10: RIEGO
B11: GRUPO FUNCIONAL | E11: RIEGO TECNIFICADO
B12: RESPONSABLE FUNCIONAL | E12: AGRICULTURA Y RIEGO
B15: 2. UNIDAD FORMULADORA
B17: SECTOR | E17: GOBIERNOS LOCALES
B19: PLIEGO | E19: MUNICIPALIDAD DISTRITAL DE LOCROJA
B21: NOMBRE | E21: UNIDAD FORMULADORA DE DESARROLLO SOCIAL Y ECONÓMICO
B23: Persona Responsable de Formular la Ficha Técnica | E23: CARLOS NATIVIDAD TORERO | H23: PROFESION: | I23: ING. AGRICOLA
B25: Persona Responsable de la Unidad Formuladora | E25: LUIS LIVORA CANTELLA | H25: PROFESION: | I25: ING. AGRÍCOLA
B28: 3. UNIDAD EJECUTORA DE INVERSIONES
B30: SECTOR | E30: GOBIERNOS LOCALES
B32: PLIEGO | E32: MUNICIPALIDAD DISTRITAL DE LOCROJA
B34: NOMBRE | E34: UNIDAD FORMULADORA DE DESARROLLO SOCIAL Y ECONÓMICO
B36: Persona Responsable de la Unidad Ejecutora | E36: JUAN PORTILLA CUETO | H36: PROFESION: | I36: ING. AGRICOLA
B38: Organo Técnico Responsable | E38: GERENCIA DE INFRAESTRUCTURA Y OBRAS PÚBLICAS
B41: 4. UBICACIÓN Y ACCESOS
B43: 4.1. Ubicación Política
B45: REGIÓN | E45: HUANCAVELICA
B46: PROVINCIA | E46: CHURCAMPA
B47: DISTRITO | E47: LOCROJA
B48: LOCALIDAD | E48: CENTRO POBLADO SAN LUIS
B50: 4.2. Ubicación Geográfica
B52: COORDENADAS UTM (m) | C52: (WGS84) | E52: ESTE | F52: 657259 | G52: NORTE | H52: 9406136 | I52: ZONA | J52: 18 - M
B53: ALTURA (msnm) | E53: 2542
B54: REGIÓN NATURAL | E54: Sierra
B56: 4.3. Ubicación Hidrografica
B58: Vertiente | C58: Atlántico | E58: Cuenca | F58: Mantaro | H58: Microcuenca | I58: Churcampa
B60: 4.4. Vias de acceso al proyecto
B62: Tramo (DE) | C62: Tramo (HASTA) | D62: Distancia (km) | E62: Tiempo (Horas) | F62: Tipo de vía | G62: Estado
B63: Lima | C63: Huancayo | D63: 300 | E63: 7 | F63: Asfaltado | G63: B
B64: Huancayo | C64: Churcampa | D64: 120 | E64: 5 | F64: Asfaltado - Afirmado | G64: R
B65: Churcampa | C65: San Luis | D65: 50 | E65: 1 | F65: Afirmado | G65: R
B66: San Luis | C66: Proyecto | D66: 15 | E66: 0.5 | F66: Trocha carrozable | G66: M
B67: Valores posibles para el Estado: (B) bueno, (R) regular, (M) malo
B70: II. DEFINICIÓN DEL PROBLEMA Y OBJETIVOS
B72: 5. DESCRIPCIÓN DE LA SITUACIÓN ACTUAL
B74: 5.1. Administración del Agua con Fines Agrícolas
B76: AUTORIDAD ADMINISTRATIVA DEL AGUA (AAA) | E76: HUANCAVELICA
B77: AUTORIDAD LOCAL DEL AGUA (ALA) | E77: HUANCAVELICA
B78: JUNTA DE USUARIOS | E78: HUANCAVELICA
B79: COMISIÓN DE USUARIOS | E79: 7 PAGOS
B80: COMITÉ DE USUARIOS | E80: SAN LUIS
B81: OTROS | P81: EXPLICAR / PROFUNDIZAR - DGIAR
B82: ORGANIZACIÓN FORMALIZADA POR LA ANA | E82: SI | F82: X | G82: NO | P82: EXPLICAR / PROFUNDIZAR - DGIAR
B84: 5.2 Fuente Hídrica
B86: Fuente | C86: Nombre | D86: Ubicación geográfica UTM WGS84
D87: Este | E87: Norte | F87: Zona | G87: Altitud (m.s.n.m)
B88: Rio
B89: Canal | C89: San Luis | D89: 657278 | E89: 9406140 | F89: 18 - M | G89: 2595
B90: Manantial (Puquial)
B91: Quebrada
B92: Pozo
B93: Otros:
B95: 5.3 Beneficiarios Directos
B97: NÚMERO DE USUARIOS BENEFICIADOS | E97: 12 | F97: agricultores
B99: 6. PROBLEMA CENTRAL Y SUS CAUSAS
B101: 6.1. Problema Central
B103: Descripción del Problema Central
B104: Baja productividad agrícola en el ámbito del Centro Poblado San Luis – Distrito de Locroja – Provincia de Churcampa – Huancavelica
B106: 6.2. Causas que Generan el Problema
B108: Nº | C108: Descripción de las Principales Causas | F108: Causas Indirectas
B109: Causa 1 | C109: Ineficiencias en el uso del recurso hídrico | F109: i. Uso deficiente de técnicas de riego por gravedad (inundación, surco, etc.) ii. Poco conocimiento de técnicas de riego de mayor eficiencia
B110: Causa 2 | C110: Inadecuada disponibilidad del recurso hídrico | F110: i. Insuficiente infraestructura hidráulica ii. Inadecuada conservación de la infraestructura hidráulica iii. Poca capacidad de gestión del recurso hídrico entre usuarios
B112: 7. OBJETIVO Y MEDIOS FUNDAMENTALES
B114: 7.1. Objetivo
B116: Descripción del Objetivo Central
B117: Incremento de la productividad agrícola en el ámbito del Centro Poblado San Luis – Distrito de Locroja – Provincia Churcampa – Huancavelica
B119: 7.2. Medios Fundamentales
B121: N° | C121: Descripción Medios Fundamentales
B122: 1 | C122: Utilización de técnicas de riego presurizado
B123: 2 | C123: Mayor conocimiento de técnicas de riego más eficientes
B126: III. CUANTIFICACIÓN DE SU CONTRIBUCIÓN AL CIERRE DE BRECHAS
B128: 11. CONTRIBUCIÓN AL CIERRE DE BRECHAS
B130: Brecha | E130: Unida de Medida | G130: Brecha Nacional | I130: Contribución al Cierre de Brecha
B131: Área Bajo Riego Sin Riego Tecnificado | E131: ha | G131: 2362143 | I131: 20
B134: IV. FORMULACION Y EVALUACION
B136: 12. HORIZONTE DE EVALUACIÓN (*)
B138: Número de Años del Horizonte de Evaluación | E138: 10 | F138: AÑOS
B140: Sustento Técnico del Horizonte de Evaluación Elegido
B142: Tiempo de vida útil de los materiales y equipos que se utilizarán en el proyecto | G142: X
B143: Periodo de productividad del cultivo (proyectos agroforestales)
B146: 6. BALANCE HÍDRICO
B148: 7.3. Acreditación Hídrica
B150: DOCUMENTO DE ACREDITACIÓN HÍDRICA | E150: LICENCIA | F150: X | H150: ACREDITACIÓN
B151: DOCUMENTO DE LA ANA QUE SUSTENTA LA ACREDITACIÓN | E151: Resolución Administrativa N° 007-2015-ALA-HUANCAVELICA
B153: 7.3. Cálculo de la Oferta Hídrica
B155: CAUDAL DE LA FUENTE AUTORIZADO | E155: 15 | F155: l/s
B156: VOLUMEN AUTORIZADO | F156: m3
B158: MES PROMEDIO | C158: CAUDAL (l/s) | D158: FRECUENCIA DE DOTACIÓN (cada x días) | E158: TIEMPO DE RIEGO (horas por bloque) | F158: VOLUMEN DISPONIBLE (m3)
B159: ENERO
B160: FEBRERO
B161: MARZO
B162: ABRIL
B163: MAYO
B164: JUNIO
B165: JULIO
B166: AGOSTO
B167: SEPTIEMBRE
B168: OCTUBRE
B169: NOVIEMBRE
B170: DICIEMBRE
B171: VOLUMEN TOTAL
B174: 7.3. Cálculo de la Demanda Hídrica - Sin Proyecto
B176: ÁREA A BENEFICIAR | E176: 20 | F176: ha
B177: MÉTODO DE RIEGO A NIVEL PARCELARIO | E177: GRAVEDAD
B178: EFICIENCIA DE APLICACIÓN | E178: 30 | F178: %
B180: MÉTODO DE RIEGO | C180: GRAVEDAD | D180: GRAVEDAD | E180: GRAVEDAD | G180: ÁREA A IRRIGAR | H180: VOLUMEN DEMANDADO
B181: CEDULA | C181: ALFALFA | D181: MAIZ | E181: PAPA | G181: ha | H181: M3
B182: ENERO | C182: 15 | E182: 5 | G182: =+C182+D182+E182+F182 -> 20
B183: FEBRERO | C183: 15 | E183: 5 | G183: =+C183+D183+E183+F183 -> 20
B184: MARZO | C184: 15 | G184: 15
B185: ABRIL | C185: 15 | D185: 5 | G185: 20
B186: MAYO | C186: 15 | D186: 5 | G186: 20
B187: JUNIO | C187: 15 | D187: 5 | G187: 20
B188: JULIO | C188: 15 | D188: 5 | G188: 20
B189: AGOSTO | C189: 15 | D189: 5 | G189: 20
B190: SEPTIEMBRE | C190: 15 | G190: 15
B191: OCTUBRE | C191: 15 | E191: 5 | G191: 20
B192: NOVIEMBRE | C192: 15 | E192: 5 | G192: 20
B193: DICIEMBRE | C193: 15 | E193: 5 | G193: 20
B194: VOLUMEN TOTAL
B197: 7.3. Cálculo de la Demanda Hídrica - Con Proyecto
B199: ÁREA A BENEFICIAR | E199: 15 | F199: ha
B200: MÉTODO DE RIEGO A NIVEL PARCELARIO | E200: ASPERSIÓN
B201: EFICIENCIA DE APLICACIÓN | E201: 75 | F201: %
B203: ÁREA A BENEFICIAR | E203: 5 | F203: ha
B204: MÉTODO DE RIEGO A NIVEL PARCELARIO | E204: GOTEO
B205: EFICIENCIA DE APLICACIÓN | E205: 90 | F205: %
B208: MÉTODO DE RIEGO | C208: ASPERSIÓN | D208: ASPERSIÓN | E208: ASPERSIÓN | F208: GOTEO | G208: ÁREA A IRRIGAR | H208: VOLUMEN DEMANDADO
B209: CEDULA | C209: ALFALFA | D209: HABA | E209: QUINUA | F209: PALTO | G209: ha | H209: M3
B210: ENERO | C210: 10 | E210: 5 | F210: 5 | G210: =+C210+D210+E210+F210 -> 20
B211: FEBRERO | C211: 10 | E211: 5 | F211: 5 | G211: =+C211+D211+E211+F211 -> 20
B212: MARZO | C212: 10 | F212: 5 | G212: 15
B213: ABRIL | C213: 10 | D213: 5 | F213: 5 | G213: 20
B214: MAYO | C214: 10 | D214: 5 | F214: 5 | G214: 20
B215: JUNIO | C215: 10 | D215: 5 | F215: 5 | G215: 20
B216: JULIO | C216: 10 | D216: 5 | F216: 5 | G216: 20
B217: AGOSTO | C217: 10 | D217: 5 | F217: 5 | G217: 20
B218: SEPTIEMBRE | C218: 10 | F218: 5 | G218: 15
B219: OCTUBRE | C219: 10 | E219: 5 | F219: 5 | G219: 20
B220: NOVIEMBRE | C220: 10 | E220: 5 | F220: 5 | G220: 20
B221: DICIEMBRE | C221: 10 | E221: 5 | F221: 5 | G221: 20
B222: VOLUMEN TOTAL
B225: 7.3. Cálculo del Balance Hídrico - Sin Proyecto
C227: Oferta Hídrica (m3) | D227: Demanda Hídrica Sin Proyecto (m3) | E227: Balance Hídrico Sin Proyecto (m3)
B228: ENERO
B229: FEBRERO
B230: MARZO | G230: INSERTAR GRÁFICO
B231: ABRIL
B232: MAYO
B233: JUNIO
B234: JULIO
B235: AGOSTO
B236: SEPTIEMBRE
B237: OCTUBRE
B238: NOVIEMBRE
B239: DICIEMBRE
B240: VOLUMEN TOTAL
B243: 7.3. Cálculo del Balance Hídrico - Con Proyecto
C245: Oferta Hídrica (m3) | D245: Demanda Hídrica Con Proyecto (m3) | E245: Balance Hídrico Con Proyecto (m3)
B246: ENERO
B247: FEBRERO
B248: MARZO | G248: INSERTAR GRÁFICO
B249: ABRIL
B250: MAYO
B251: JUNIO
B252: JULIO
B253: AGOSTO
B254: SEPTIEMBRE
B255: OCTUBRE
B256: NOVIEMBRE
B257: DICIEMBRE
B258: VOLUMEN TOTAL
B272: 6. ESTIMACIÓN DE LOS COSTOS DEL PROYECTO
B274: OJO COORDINAR CON EQUIPO OTR
B276: 21. RIESGOS
B277: 21.1 ¿El área donde se ubica el proyecto ha sido afectada por algún desastre natural?
C280: No | D280: X
C282: Si
C284: Medidas consideradas en el proyecto para mitigar el desastre
C285: Acción 1
C287: Acción 2
C289: Acción "n"
B292: 22. IMPACTO AMBIENTAL
C294: IMPACTOS NEGATIVOS | E294: MEDIDAS DE MITIGACIÓN | H294: COSTO (S/.)
C295: Durante la Ejecución
C296: Impacto 1: Acumulación de residuos sólidos de construcción y otros | E296: Eliminación en depósitos de materiales excedentes | H296: 5250
C297: Impacto 2:
C298: Impacto n:
C299: Durante la Operación
C300: Impacto 1:
C301: Impacto n:
B310: COSTOS DE OPERACIÓN Y MANTENIMIENTO
B314: COSTOS DE REPOSICIÓN
B326: 6. ESTIMACIÓN DE LOS BENEFICIOS DEL PROYECTO
... 71 more rows

Sheet Balance (hidden)
C3: BALANCE HÍDRICO - SIN PROYECTO
B5: N° | C5: Descripción | D5: Cálculo | E5: Unidad | F5: Meses
F6: Ene | G6: Feb | H6: Mar | I6: Abr | J6: May | K6: Jun | L6: Jul | M6: Ago | N6: Sep | O6: Oct | P6: Nov | Q6: Dic
B7: a | C7: Oferta | D7: Dato de Oferta | E7: (m3/mes) | F7: =+Oferta!G15 -> 38880 | G7: =+Oferta!H15 -> 38880 | H7: =+Oferta!I15 -> 38880 | I7: =+Oferta!J15 -> 25920 | J7: =+Oferta!K15 -> 25920 | K7: =+Oferta!L15 -> 25920 | L7: =+Oferta!M15 -> 25920 | M7: =+Oferta!N15 -> 25920 | N7: =+Oferta!O15 -> 25920 | O7: =+Oferta!P15 -> 25920 | P7: =+Oferta!Q15 -> 38880 | Q7: =+Oferta!R15 -> 38880
B8: b | E8: (m3/dia) | F8: =+Oferta!G15/Oferta!G12 -> 1254.193548 | G8: =+Oferta!H15/Oferta!H12 -> 1388.571429 | H8: =+Oferta!I15/Oferta!I12 -> 1254.193548 | I8: =+Oferta!J15/Oferta!J12 -> 864 | J8: =+Oferta!K15/Oferta!K12 -> 836.1290323 | K8: =+Oferta!L15/Oferta!L12 -> 864 | L8: =+Oferta!M15/Oferta!M12 -> 836.1290323 | M8: =+Oferta!N15/Oferta!N12 -> 836.1290323 | N8: =+Oferta!O15/Oferta!O12 -> 864 | O8: =+Oferta!P15/Oferta!P12 -> 836.1290323 | P8: =+Oferta!Q15/Oferta!Q12 -> 1296 | Q8: =+Oferta!R15/Oferta!R12 -> 1254.193548
B9: c | C9: Demanda | D9: Dato de Demanda | E9: (m3/mes) | F9: =+Demanda!F37 -> 32260.66667 | G9: =+Demanda!G37 -> 5688 | H9: =+Demanda!H37 -> 11390 | I9: =+Demanda!I37 -> 34941.66667 | J9: =+Demanda!J37 -> 52935 | K9: =+Demanda!K37 -> 59842.5 | L9: =+Demanda!L37 -> 65735.83333 | M9: =+Demanda!M37 -> 67495.83333 | N9: =+Demanda!N37 -> 43600 | O9: =+Demanda!O37 -> 22380.66667 | P9: =+Demanda!P37 -> 50862.5 | Q9: =+Demanda!Q37 -> 21634.91667
B10: d | E10: (m3/dia) | F10: =+Demanda!F36 -> 1040.666667 | G10: =+Demanda!G36 -> 203.1428571 | H10: =+Demanda!H36 -> 367.4193548 | I10: =+Demanda!I36 -> 1164.722222 | J10: =+Demanda!J36 -> 1707.580645 | K10: =+Demanda!K36 -> 1994.75 | L10: =+Demanda!L36 -> 2120.510753 | M10: =+Demanda!M36 -> 2177.284946 | N10: =+Demanda!N36 -> 1453.333333 | O10: =+Demanda!O36 -> 721.9569892 | P10: =+Demanda!P36 -> 1695.416667 | Q10: =+Demanda!Q36 -> 697.9005376
B12: e | C12: Balance Hídrico | D12: (a - c) | E12: (m3/mes) | F12: =+F7-F9 -> 6619.333333 | G12: 33192 | H12: 27490 | I12: -9021.666667 | J12: -27015 | K12: -33922.5 | L12: -39815.83333 | M12: -41575.83333 | N12: -17680 | O12: 3539.333333 | P12: -11982.5 | Q12: 17245.08333
B13: f | D13: (b - d) | E13: (m3/dia) | F13: 213.5268817 | G13: 1185.428571 | H13: 886.7741935 | I13: -300.7222222 | J13: -871.4516129 | K13: -1130.75 | L13: -1284.38172 | M13: -1341.155914 | N13: -589.3333333 | O13: 114.172043 | P13: -399.4166667 | Q13: 556.2930108
C20: BALANCE HÍDRICO - CON PROYECTO
B22: N° | C22: Descripción | D22: Cálculo | E22: Unidad | F22: Meses
F23: Ene | G23: Feb | H23: Mar | I23: Abr | J23: May | K23: Jun | L23: Jul | M23: Ago | N23: Sep | O23: Oct | P23: Nov | Q23: Dic
B24: a | C24: Oferta | D24: Dato de Oferta | E24: (m3/ha/mes) | F24: =+F7 -> 38880 | G24: =+G7 -> 38880 | H24: 38880 | I24: 25920 | J24: 25920 | K24: 25920 | L24: 25920 | M24: 25920 | N24: 25920 | O24: 25920 | P24: 38880 | Q24: 38880
B25: b | E25: (m3/ha/dia) | F25: =+F8 -> 1254.193548 | G25: =+G8 -> 1388.571429 | H25: 1254.193548 | I25: 864 | J25: 836.1290323 | K25: 864 | L25: 836.1290323 | M25: 836.1290323 | N25: 864 | O25: 836.1290323 | P25: 1296 | Q25: 1254.193548
B26: c | C26: Demanda | D26: Dato de Demanda | E26: (m3/ha/mes) | F26: =+Demanda!F56+Demanda!F87 -> 10106.68889 | G26: =+Demanda!G56+Demanda!G87 -> 860.8 | H26: =+Demanda!H56+Demanda!H87 -> 3037.333333 | I26: =+Demanda!I56+Demanda!I87 -> 12390.05556 | J26: =+Demanda!J56+Demanda!J87 -> 19580.3 | K26: =+Demanda!K56+Demanda!K87 -> 19090 | L26: =+Demanda!L56+Demanda!L87 -> 21661.72222 | M26: =+Demanda!M56+Demanda!M87 -> 24846.83778 | N26: =+Demanda!N56+Demanda!N87 -> 19425.27778 | O26: =+Demanda!O56+Demanda!O87 -> 8188.444444 | P26: =+Demanda!P56+Demanda!P87 -> 17546.16667 | Q26: =+Demanda!Q56+Demanda!Q87 -> 5827.722222
B27: d | E27: (m3/ha/dia) | F27: =+Demanda!F57+Demanda!F88 -> 326.0222222 | G27: =+Demanda!G57+Demanda!G88 -> 30.74285714 | H27: =+Demanda!H57+Demanda!H88 -> 97.97849462 | I27: =+Demanda!I57+Demanda!I88 -> 413.0018519 | J27: =+Demanda!J57+Demanda!J88 -> 631.6225806 | K27: =+Demanda!K57+Demanda!K88 -> 636.3333333 | L27: =+Demanda!L57+Demanda!L88 -> 698.765233 | M27: =+Demanda!M57+Demanda!M88 -> 801.5108961 | N27: =+Demanda!N57+Demanda!N88 -> 647.5092593 | O27: =+Demanda!O57+Demanda!O88 -> 264.1433692 | P27: =+Demanda!P57+Demanda!P88 -> 584.8722222 | Q27: =+Demanda!Q57+Demanda!Q88 -> 187.9910394
B29: e | C29: Balance Hídrico | D29: (a - c) | E29: (m3/ha/mes) | F29: =+F24-F26 -> 28773.31111 | G29: 38019.2 | H29: 35842.66667 | I29: 13529.94444 | J29: 6339.7 | K29: 6830 | L29: 4258.277778 | M29: 1073.162222 | N29: 6494.722222 | O29: 17731.55556 | P29: 21333.83333 | Q29: 33052.27778
B30: f | D30: (b - d) | E30: (m3/ha/dia) | F30: 928.1713262 | G30: 1357.828571 | H30: 1156.215054 | I30: 450.9981481 | J30: 204.5064516 | K30: 227.6666667 | L30: 137.3637993 | M30: 34.6181362 | N30: 216.4907407 | O30: 571.9856631 | P30: 711.1277778 | Q30: 1066.202509

Sheet Demanda (hidden)
B6: CÁLCULO DE LA DEMANDA HÍDRICA "SIN PROYECTO" | X6: EJEMPLOS DE FUENTE DE INFORMACIÓN ETO y PRECIPITACIÓN EFECTIVA
B8: N° | C8: Descripción | D8: Cálculo | E8: Unidad | F8: Meses | R8: Total
F9: Ene | G9: Feb | H9: Mar | I9: Abr | J9: May | K9: Jun | L9: Jul | M9: Ago | N9: Sep | O9: Oct | P9: Nov | Q9: Dic
B10: a | C10: Eto | D10: Dato | E10: mm/día | F10: 3.24 | G10: 3.02 | H10: 2.88 | I10: 3.09 | J10: 3.06 | K10: 2.99 | L10: 3.1 | M10: 3.58 | N10: 3.65 | O10: 3.46 | P10: 3.63 | Q10: 3.03
B11: b | C11: Kc Ponderado | D11: Dato | F11: =+Kc!D23 -> 1.025 | G11: =+Kc!E23 -> 0.95 | H11: =+Kc!F23 -> 1 | I11: =+Kc!G23 -> 0.875 | J11: =+Kc!H23 -> 0.875 | K11: =+Kc!I23 -> 1.0375 | L11: =+Kc!J23 -> 1.0375 | M11: =+Kc!K23 -> 0.9375 | N11: =+Kc!L23 -> 1 | O11: =+Kc!M23 -> 0.85 | P11: =+Kc!N23 -> 0.9375 | Q11: =+Kc!O23 -> 1.0375
B12: c | C12: Uso Consultivo o Evaporación Real | D12: (a x b) | E12: mm/día | F12: =+F10*F11 -> 3.321 | G12: 2.869 | H12: 2.88 | I12: 2.70375 | J12: 2.6775 | K12: 3.102125 | L12: 3.21625 | M12: 3.35625 | N12: 3.65 | O12: 2.941 | P12: 3.403125 | Q12: 3.143625
B13: d | C13: Precipitación Efectiva | D13: Dato | E13: mm/día | F13: 1.76 | G13: 2.564285714 | H13: 2.14516129 | I13: 0.9566666667 | J13: 0.1161290323 | K13: 0.11 | L13: 0.03548387097 | M13: 0.09032258065 | N13: 0.7433333333 | O13: 1.858064516 | P13: 0.86 | Q13: 2.096774194
B14: e | C14: Necesidades Netas del Cultivo | D14: (c - d) | E14: mm/día | F14: =+IF((F12-F13)<0,0,(F12-F13)) -> 1.561 | G14: =+IF((G12-G13)<0,0,(G12-G13)) -> 0.3047142857 | H14: 0.7348387097 | I14: 1.747083333 | J14: 2.561370968 | K14: 2.992125 | L14: 3.180766129 | M14: 3.265927419 | N14: 2.906666667 | O14: 1.082935484 | P14: 2.543125 | Q14: 1.046850806
B15: f | C15: Eficiencia de Riego | D15: Dato | E15: % | F15: ='2. Balance Hídrico'!E59 -> 0.3 | G15: =+F15 -> 0.3 | H15: =+G15 -> 0.3 | I15: 0.3 | J15: 0.3 | K15: 0.3 | L15: 0.3 | M15: 0.3 | N15: 0.3 | O15: 0.3 | P15: 0.3 | Q15: 0.3
B16: g | C16: Necesidades Totales del Cultivo | D16: (e / f) | E16: mm/día | F16: =+F14/F15 -> 5.203333333 | G16: =+G14/G15 -> 1.015714286 | H16: 2.449462366 | I16: 5.823611111 | J16: 8.537903226 | K16: 9.97375 | L16: =+L14/L15 -> 10.60255376 | M16: 10.88642473 | N16: 9.688888889 | O16: 3.609784946 | P16: 8.477083333 | Q16: 3.489502688
B17: h | D17: (e / f) x 10 | E17: m3-ha/día | F17: =+F16*10 -> 52.03333333 | G17: 10.15714286 | H17: 24.49462366 | I17: 58.23611111 | J17: 85.37903226 | K17: 99.7375 | L17: 106.0255376 | M17: 108.8642473 | N17: 96.88888889 | O17: 36.09784946 | P17: 84.77083333 | Q17: 34.89502688
B18: i | C18: N° de Días del Mes | D18: Dato | F18: 31 | G18: 28 | H18: 31 | I18: 30 | J18: 31 | K18: 30 | L18: 31 | M18: 31 | N18: 30 | O18: 31 | P18: 30 | Q18: 31
B19: j | C19: Demanda Total Unitaria - Mensual | D19: (h x i) | E19: m3/ha/mes | F19: =+F17*F18 -> 1613.033333 | G19: 284.4 | H19: 759.3333333 | I19: 1747.083333 | J19: 2646.75 | K19: 2992.125 | L19: 3286.791667 | M19: 3374.791667 | N19: 2906.666667 | O19: 1119.033333 | P19: 2543.125 | Q19: 1081.745833
B20: k | C20: Área de Riego | D20: Dato | E20: ha | F20: =+Kc!D12 -> 20 | G20: =+Kc!E12 -> 20 | H20: =+Kc!F12 -> 15 | I20: =+Kc!G12 -> 20 | J20: =+Kc!H12 -> 20 | K20: =+Kc!I12 -> 20 | L20: =+Kc!J12 -> 20 | M20: =+Kc!K12 -> 20 | N20: =+Kc!L12 -> 15 | O20: =+Kc!M12 -> 20 | P20: =+Kc!N12 -> 20 | Q20: =+Kc!O12 -> 20
B21: l | C21: Demanda Total - Mensual | D21: (j x k) | E21: m3/mes | F21: =+F19*F20 -> 32260.66667 | G21: =+G19*G20 -> 5688 | H21: 11390 | I21: 34941.66667 | J21: 52935 | K21: 59842.5 | L21: 65735.83333 | M21: 67495.83333 | N21: 43600 | O21: 22380.66667 | P21: 50862.5 | Q21: 21634.91667 | R21: =SUM(F21:Q21) -> 468767.5833
B22: m | C22: Demanda Total - Diaria | D22: (l / i) | E22: m3/día | F22: =+F21/F18 -> 1040.666667 | G22: =+G21/G18 -> 203.1428571 | H22: 367.4193548 | I22: 1164.722222 | J22: 1707.580645 | K22: 1994.75 | L22: 2120.510753 | M22: 2177.284946 | N22: 1453.333333 | O22: 721.9569892 | P22: 1695.416667 | Q22: 697.9005376 | R22: =SUM(F22:Q22) -> 15344.68497
B29: CÁLCULO DEL VOLUMEN DEMANDADO
B31: TIEMPO DE OPERACIÓN DIARIO | D31: 24 | E31: HORAS
B33: N° | C33: Descripción | D33: Cálculo | E33: Unidad | F33: Meses | R33: Total
F34: Ene | G34: Feb | H34: Mar | I34: Abr | J34: May | K34: Jun | L34: Jul | M34: Ago | N34: Sep | O34: Oct | P34: Nov | Q34: Dic
B35: m | C35: Módulo de Riego | E35: l/s / ha | F35: =+F16*(10000/($D$31*60*60)) -> 0.6022376543 | G35: =+G16*(10000/($D$31*60*60)) -> 0.1175595238 | H35: 0.2835025886 | I35: 0.6740290638 | J35: 0.9881832437 | K35: 1.154369213 | L35: 1.227147426 | M35: 1.260002862 | N35: 1.121399177 | O35: 0.4177991836 | P35: 0.9811439043 | Q35: 0.4038776259
B36: n | C36: Demanda Total Diaria | E36: m3/día | F36: =+F35*F20*24*60*60/1000 -> 1040.666667 | G36: =+G35*G20*24*60*60/1000 -> 203.1428571 | H36: 367.4193548 | I36: 1164.722222 | J36: 1707.580645 | K36: 1994.75 | L36: 2120.510753 | M36: 2177.284946 | N36: 1453.333333 | O36: 721.9569892 | P36: 1695.416667 | Q36: 697.9005376 | R36: =SUM(F36:Q36) -> 15344.68497
B37: o | C37: Demanda Total Mensual | E37: m3/mes | F37: =+F36*F18 -> 32260.66667 | G37: =+G36*G18 -> 5688 | H37: 11390 | I37: 34941.66667 | J37: 52935 | K37: 59842.5 | L37: 65735.83333 | M37: 67495.83333 | N37: 43600 | O37: 22380.66667 | P37: 50862.5 | Q37: 21634.91667 | R37: =SUM(F37:Q37) -> 468767.5833
B41: CÁLCULO DE LA DEMANDA HÍDRICA "CON PROYECTO" - ASPERSIÓN
B43: N° | C43: Descripción | D43: Cálculo | E43: Unidad | F43: Meses | R43: Total
F44: Ene | G44: Feb | H44: Mar | I44: Abr | J44: May | K44: Jun | L44: Jul | M44: Ago | N44: Sep | O44: Oct | P44: Nov | Q44: Dic
B45: a | C45: Eto | D45: Dato | E45: mm/dia | F45: =+F10 -> 3.24 | G45: =+G10 -> 3.02 | H45: 2.88 | I45: 3.09 | J45: 3.06 | K45: 2.99 | L45: 3.1 | M45: 3.58 | N45: 3.65 | O45: 3.46 | P45: 3.63 | Q45: 3.03
B46: b | C46: Kc Ponderado | D46: Dato | F46: =+Kc!D53 -> 1.016666667 | G46: =+Kc!E53 -> 0.9 | H46: =+Kc!F53 -> 1 | I46: =+Kc!G53 -> 0.8833333333 | J46: =+Kc!H53 -> 0.9 | K46: =+Kc!I53 -> 0.9166666667 | L46: =+Kc!J53 -> 0.9333333333 | M46: =+Kc!K53 -> 0.9433333333 | N46: =+Kc!L53 -> 0.9166666667 | O46: =+Kc!M53 -> 1 | P46: =+Kc!N53 -> 0.9 | Q46: =+Kc!O53 -> 1
B47: c | C47: Uso Consultivo o Evaporación Real | D47: (a x b) | E47: mm/dia | F47: =+F45*F46 -> 3.294 | G47: 2.718 | H47: 2.88 | I47: 2.7295 | J47: 2.754 | K47: 2.740833333 | L47: 2.893333333 | M47: 3.377133333 | N47: 3.345833333 | O47: 3.46 | P47: 3.267 | Q47: 3.03
B48: d | C48: Precipitación Efectiva | D48: Dato | E48: mm/dia | F48: =+F13 -> 1.76 | G48: =+G13 -> 2.564285714 | H48: 2.14516129 | I48: 0.9566666667 | J48: 0.1161290323 | K48: 0.11 | L48: 0.03548387097 | M48: 0.09032258065 | N48: 0.7433333333 | O48: 1.858064516 | P48: 0.86 | Q48: 2.096774194
B49: e | C49: Necesidades Netas del Cultivo | D49: (c - d) | E49: mm/dia | F49: =+IF((F47-F48)<0,0,(F47-F48)) -> 1.534 | G49: =+IF((G47-G48)<0,0,(G47-G48)) -> 0.1537142857 | H49: =+IF((H47-H48)<0,0,(H47-H48)) -> 0.7348387097 | I49: 1.772833333 | J49: 2.637870968 | K49: 2.630833333 | L49: 2.857849462 | M49: 3.286810753 | N49: 2.6025 | O49: 1.601935484 | P49: 2.407 | Q49: 0.9332258065 | R49: =SUM(F49:Q49) -> 23.15341214
B50: f | C50: Eficiencia de Riego | D50: Dato | E50: % | F50: 0.75 | G50: =+F50 -> 0.75 | H50: =+G50 -> 0.75 | I50: 0.75 | J50: 0.75 | K50: 0.75 | L50: 0.75 | M50: 0.75 | N50: 0.75 | O50: 0.75 | P50: 0.75 | Q50: 0.75
B51: g | C51: Necesidades Totales del Cultivo | D51: (e / f) | E51: mm/dia | F51: =+F49/F50 -> 2.045333333 | G51: =+G49/G50 -> 0.204952381 | H51: =+H49/H50 -> 0.9797849462 | I51: 2.363777778 | J51: 3.51716129 | K51: 3.507777778 | L51: 3.81046595 | M51: 4.382414337 | N51: 3.47 | O51: 2.135913978 | P51: 3.209333333 | Q51: 1.244301075 | R51: =SUM(F51:Q51) -> 30.87121618
B52: h | D52: (e / f) x 10 | E52: m3-ha/dia | F52: =+F51*10 -> 20.45333333 | G52: 2.04952381 | H52: 9.797849462 | I52: 23.63777778 | J52: 35.1716129 | K52: 35.07777778 | L52: 38.1046595 | M52: 43.82414337 | N52: 34.7 | O52: 21.35913978 | P52: 32.09333333 | Q52: 12.44301075 | R52: =SUM(F52:Q52) -> 308.7121618
B53: i | C53: N° de Días del Mes | D53: Dato | F53: =+F18 -> 31 | G53: 28 | H53: 31 | I53: 30 | J53: 31 | K53: 30 | L53: 31 | M53: 31 | N53: 30 | O53: 31 | P53: 30 | Q53: 31
B54: j | C54: Demanda Total Unitaria - Mensual | D54: (h x i) | E54: m3/ha/mes | F54: =+F52*F53 -> 634.0533333 | G54: 57.38666667 | H54: 303.7333333 | I54: 709.1333333 | J54: 1090.32 | K54: =+K52*K53 -> 1052.333333 | L54: 1181.244444 | M54: 1358.548444 | N54: 1041 | O54: 662.1333333 | P54: 962.8 | Q54: 385.7333333 | R54: =SUM(F54:Q54) -> 9438.419556
B55: k | C55: Área de Riego | D55: Dato | E55: ha | F55: =+Kc!D41 -> 15 | G55: =+Kc!E41 -> 15 | H55: =+Kc!F41 -> 10 | I55: =+Kc!G41 -> 15 | J55: =+Kc!H41 -> 15 | K55: =+Kc!I41 -> 15 | L55: =+Kc!J41 -> 15 | M55: =+Kc!K41 -> 15 | N55: =+Kc!L41 -> 15 | O55: =+Kc!M41 -> 10 | P55: =+Kc!N41 -> 15 | Q55: =+Kc!O41 -> 15
B56: l | C56: Demanda Total - Mensual | D56: (j x k) | E56: m3/mes | F56: =+F54*F55 -> 9510.8 | G56: 860.8 | H56: 3037.333333 | I56: 10637 | J56: 16354.8 | K56: 15785 | L56: 17718.66667 | M56: 20378.22667 | N56: 15615 | O56: 6621.333333 | P56: 14442 | Q56: 5786 | R56: =SUM(F56:Q56) -> 136746.96
B57: m | C57: Demanda Total - Diaria | D57: (l / i) | E57: m3/día | F57: =+F56/F53 -> 306.8 | G57: 30.74285714 | H57: 97.97849462 | I57: 354.5666667 | J57: 527.5741935 | K57: 526.1666667 | L57: 571.5698925 | M57: 657.3621505 | N57: 520.5 | O57: 213.5913978 | P57: 481.4 | Q57: 186.6451613 | R57: =SUM(F57:Q57) -> 4474.897481
B60: CÁLCULO DEL VOLUMEN DEMANDADO
B62: TIEMPO DE OPERACIÓN DIARIO | D62: =+D31 -> 24 | E62: HORAS
B64: N° | C64: Descripción | D64: Cálculo | E64: Unidad | F64: Meses | R64: Total
F65: Ene | G65: Feb | H65: Mar | I65: Abr | J65: May | K65: Jun | L65: Jul | M65: Ago | N65: Sep | O65: Oct | P65: Nov | Q65: Dic
B66: m | C66: Módulo de Riego | E66: l/s / ha | F66: =+F51*(10000/($D$62*60*60)) -> 0.2367283951 | G66: =+G51*(10000/($D$62*60*60)) -> 0.02372134039 | H66: 0.1134010354 | I66: 0.2735853909 | J66: 0.407078853 | K66: 0.4059927984 | L66: 0.4410261516 | M66: 0.5072238816 | N66: 0.4016203704 | O66: 0.247212266 | P66: 0.3714506173 | Q66: 0.1440163282
B67: n | C67: Demanda Total Diaria | E67: m3/día | F67: =+F66*F55*24*60*60/1000 -> 306.8 | G67: =+G66*G55*24*60*60/1000 -> 30.74285714 | H67: 97.97849462 | I67: 354.5666667 | J67: 527.5741935 | K67: 526.1666667 | L67: 571.5698925 | M67: 657.3621505 | N67: 520.5 | O67: 213.5913978 | P67: 481.4 | Q67: 186.6451613 | R67: =SUM(F67:Q67) -> 4474.897481
B68: o | C68: Demanda Total Mensual | E68: m3/mes | F68: =+F67*F53 -> 9510.8 | G68: =+G67*G53 -> 860.8 | H68: 3037.333333 | I68: 10637 | J68: 16354.8 | K68: 15785 | L68: 17718.66667 | M68: 20378.22667 | N68: 15615 | O68: 6621.333333 | P68: 14442 | Q68: 5786 | R68: =SUM(F68:Q68) -> 136746.96
B72: CÁLCULO DE LA DEMANDA HÍDRICA "CON PROYECTO" - GOTEO
B74: N° | C74: Descripción | D74: Cálculo | E74: Unidad | F74: Meses | R74: Total
F75: Ene | G75: Feb | H75: Mar | I75: Abr | J75: May | K75: Jun | L75: Jul | M75: Ago | N75: Sep | O75: Oct | P75: Nov | Q75: Dic
B76: a | C76: Eto | D76: Dato | E76: mm/dia | F76: =+F45 -> 3.24 | G76: =+G45 -> 3.02 | H76: 2.88 | I76: 3.09 | J76: 3.06 | K76: 2.99 | L76: 3.1 | M76: 3.58 | N76: 3.65 | O76: 3.46 | P76: 3.63 | Q76: 3.03
B77: b | C77: Kc Ponderado | D77: Dato | F77: =+Kc!D79 -> 0.65 | G77: =+Kc!E79 -> 0.6 | H77: =+Kc!F79 -> 0.6 | I77: =+Kc!G79 -> 0.65 | J77: =+Kc!H79 -> 0.65 | K77: =+Kc!I79 -> 0.7 | L77: =+Kc!J79 -> 0.75 | M77: =+Kc!K79 -> 0.75 | N77: =+Kc!L79 -> 0.83 | O77: =+Kc!M79 -> 0.8 | P77: =+Kc!N79 -> 0.75 | Q77: =+Kc!O79 -> 0.7
B78: c | C78: Uso Consultivo o Evaporación Real | D78: (a x b) | E78: mm/dia | F78: =+F76*F77 -> 2.106 | G78: 1.812 | H78: 1.728 | I78: 2.0085 | J78: 1.989 | K78: 2.093 | L78: 2.325 | M78: 2.685 | N78: 3.0295 | O78: 2.768 | P78: 2.7225 | Q78: 2.121
B79: d | C79: Precipitación Efectiva | D79: Dato | E79: mm/dia | F79: =+F13 -> 1.76 | G79: =+G13 -> 2.564285714 | H79: 2.14516129 | I79: 0.9566666667 | J79: 0.1161290323 | K79: 0.11 | L79: 0.03548387097 | M79: 0.09032258065 | N79: 0.7433333333 | O79: 1.858064516 | P79: 0.86 | Q79: 2.096774194
B80: e | C80: Necesidades Netas del Cultivo | D80: (c - d) | E80: mm/dia | F80: =+IF((F78-F79)<0,0,(F78-F79)) -> 0.346 | G80: =+IF((G78-G79)<0,0,(G78-G79)) -> 0 | H80: =+IF((H78-H79)<0,0,(H78-H79)) -> 0 | I80: 1.051833333 | J80: 1.872870968 | K80: 1.983 | L80: 2.289516129 | M80: 2.594677419 | N80: 2.286166667 | O80: 0.9099354839 | P80: 1.8625 | Q80: 0.02422580645 | R80: =SUM(F80:Q80) -> 15.22072581
B81: f | C81: Eficiencia de Riego | D81: Dato | E81: % | F81: 0.9 | G81: =+F81 -> 0.9 | H81: 0.9 | I81: 0.9 | J81: 0.9 | K81: 0.9 | L81: 0.9 | M81: 0.9 | N81: 0.9 | O81: 0.9 | P81: 0.9 | Q81: 0.9
B82: g | C82: Necesidades Totales del Cultivo | D82: (e / f) | E82: mm/dia | F82: =+F80/F81 -> 0.3844444444 | G82: =+G80/G81 -> 0 | H82: =+H80/H81 -> 0 | I82: 1.168703704 | J82: 2.080967742 | K82: 2.203333333 | L82: 2.54390681 | M82: 2.88297491 | N82: 2.540185185 | O82: 1.011039427 | P82: 2.069444444 | Q82: 0.02691756272 | R82: =SUM(F82:Q82) -> 16.91191756
B83: h | D83: (e / f) x 10 | E83: m3-ha/dia | F83: =+F82*10 -> 3.844444444 | G83: 0 | H83: 0 | I83: 11.68703704 | J83: 20.80967742 | K83: 22.03333333 | L83: 25.4390681 | M83: 28.8297491 | N83: 25.40185185 | O83: 10.11039427 | P83: 20.69444444 | Q83: 0.2691756272 | R83: =SUM(F83:Q83) -> 169.1191756
B84: i | C84: N° de Días del Mes | D84: Dato | F84: =+F53 -> 31 | G84: =+G53 -> 28 | H84: 31 | I84: 30 | J84: 31 | K84: 30 | L84: 31 | M84: 31 | N84: 30 | O84: 31 | P84: 30 | Q84: 31
B85: j | C85: Demanda Total Unitaria - Mensual | D85: (h x i) | E85: m3/ha/mes | F85: =+F83*F84 -> 119.1777778 | G85: 0 | H85: 0 | I85: 350.6111111 | J85: 645.1 | K85: 661 | L85: =+L83*L84 -> 788.6111111 | M85: 893.7222222 | N85: 762.0555556 | O85: 313.4222222 | P85: 620.8333333 | Q85: 8.344444444 | R85: =SUM(F85:Q85) -> 5162.877778
B86: k | C86: Área de Riego | D86: Dato | E86: ha | F86: =+Kc!D67 -> 5 | G86: =+Kc!E67 -> 5 | H86: =+Kc!F67 -> 5 | I86: =+Kc!G67 -> 5 | J86: =+Kc!H67 -> 5 | K86: =+Kc!I67 -> 5 | L86: =+Kc!J67 -> 5 | M86: =+Kc!K67 -> 5 | N86: =+Kc!L67 -> 5 | O86: =+Kc!M67 -> 5 | P86: =+Kc!N67 -> 5 | Q86: =+Kc!O67 -> 5
B87: l | C87: Demanda Total - Mensual | D87: (j x k) | E87: m3/mes | F87: =+F85*F86 -> 595.8888889 | G87: 0 | H87: 0 | I87: 1753.055556 | J87: 3225.5 | K87: 3305 | L87: 3943.055556 | M87: 4468.611111 | N87: 3810.277778 | O87: 1567.111111 | P87: 3104.166667 | Q87: 41.72222222 | R87: =SUM(F87:Q87) -> 25814.38889
B88: m | C88: Demanda Total - Diaria | D88: (l / i) | E88: m3/día | F88: =+F87/F84 -> 19.22222222 | G88: 0 | H88: 0 | I88: 58.43518519 | J88: 104.0483871 | K88: 110.1666667 | L88: 127.1953405 | M88: 144.1487455 | N88: 127.0092593 | O88: 50.55197133 | P88: 103.4722222 | Q88: 1.345878136 | R88: =SUM(F88:Q88) -> 845.5958781
B91: CÁLCULO DEL VOLUMEN DEMANDADO
B93: TIEMPO DE OPERACIÓN DIARIO | D93: =+D62 -> 24 | E93: HORAS
B95: N° | C95: Descripción | D95: Cálculo | E95: Unidad | F95: Meses | R95: Total
F96: Ene | G96: Feb | H96: Mar | I96: Abr | J96: May | K96: Jun | L96: Jul | M96: Ago | N96: Sep | O96: Oct | P96: Nov | Q96: Dic
B97: m | C97: Módulo de Riego | E97: l/s / ha | F97: =+F82*(10000/($D$62*60*60)) -> 0.04449588477 | G97: =+G82*(10000/($D$62*60*60)) -> 0 | H97: 0 | I97: 0.1352666324 | J97: 0.2408527479 | K97: 0.2550154321 | L97: 0.2944336586 | M97: 0.3336776517 | N97: 0.294002915 | O97: 0.1170184521 | P97: 0.2395190329 | Q97: 0.003115458649
B98: n | C98: Demanda Total Diaria | E98: m3/día | F98: =+F97*F86*24*60*60/1000 -> 19.22222222 | G98: 0 | H98: 0 | I98: 58.43518519 | J98: 104.0483871 | K98: 110.1666667 | L98: 127.1953405 | M98: 144.1487455 | N98: 127.0092593 | O98: 50.55197133 | P98: 103.4722222 | Q98: 1.345878136 | R98: =SUM(F98:Q98) -> 845.5958781
B99: o | C99: Demanda Total Mensual | E99: m3/mes | F99: =+F98*F84 -> 595.8888889 | G99: 0 | H99: 0 | I99: 1753.055556 | J99: 3225.5 | K99: 3305 | L99: 3943.055556 | M99: 4468.611111 | N99: 3810.277778 | O99: 1567.111111 | P99: 3104.166667 | Q99: 41.72222222 | R99: =SUM(F99:Q99) -> 25814.38889

Sheet Oferta (hidden)
D3: OFERTA HÍDRICA
C5: N° | D5: Descripción | E5: Cálculo | F5: Unidad | G5: Meses | S5: Total
G6: Ene | H6: Feb | I6: Mar | J6: Abr | K6: May | L6: Jun | M6: Jul | N6: Ago | O6: Sep | P6: Oct | Q6: Nov | R6: Dic
C7: a | D7: Caudal Asignado por la OUA | E7: Dato | F7: l/s | G7: 15 | H7: 15 | I7: 15 | J7: 15 | K7: 15 | L7: 15 | M7: 15 | N7: 15 | O7: 15 | P7: 15 | Q7: 15 | R7: 15
C8: b | E8: Dato | F8: m3/hr | G8: =+G7*3.6 -> 54 | H8: =+H7*3.6 -> 54 | I8: 54 | J8: 54 | K8: 54 | L8: 54 | M8: 54 | N8: 54 | O8: 54 | P8: 54 | Q8: 54 | R8: 54
C9: c | D9: Tiempo de Riego por Dotación | E9: Dato | F9: hr/ha | G9: 6 | H9: 6 | I9: 6 | J9: 4 | K9: 4 | L9: 4 | M9: 4 | N9: 4 | O9: 4 | P9: 4 | Q9: 6 | R9: 6
C10: d | D10: Área de Riego | E10: Dato | F10: ha | G10: 20 | H10: 20 | I10: 20 | J10: 20 | K10: 20 | L10: 20 | M10: 20 | N10: 20 | O10: 20 | P10: 20 | Q10: 20 | R10: 20
C11: e | D11: Tiempo de Riego Total por Dotación | E11: (c x d) | F11: hr | G11: =+G9*G10 -> 120 | H11: =+H9*H10 -> 120 | I11: 120 | J11: 80 | K11: 80 | L11: 80 | M11: 80 | N11: 80 | O11: 80 | P11: 80 | Q11: 120 | R11: 120
C12: f | D12: N° de Días del Mes | E12: Dato | F12: días | G12: 31 | H12: 28 | I12: 31 | J12: 30 | K12: 31 | L12: 30 | M12: 31 | N12: 31 | O12: 30 | P12: 31 | Q12: 30 | R12: 31
C13: g | D13: Frecuencia de cada Dotacion de Riego Parcelario | E13: Dato | F13: días | G13: 5 | H13: 5 | I13: 5 | J13: 5 | K13: 5 | L13: 5 | M13: 5 | N13: 5 | O13: 5 | P13: 5 | Q13: 5 | R13: 5
C14: h | D14: Número de Riegos al Mes | E14: (f / g) | F14: N° | G14: 6 | H14: 6 | I14: 6 | J14: 6 | K14: 6 | L14: 6 | M14: 6 | N14: 6 | O14: 6 | P14: 6 | Q14: 6 | R14: 6 | S14: =SUM(G14:R14) -> 72
C15: i | D15: Volumen Ofertado para el Proyecto | E15: (b x e x h) | F15: m3 | G15: =+G8*G11*G14 -> 38880 | H15: =+H8*H11*H14 -> 38880 | I15: 38880 | J15: 25920 | K15: 25920 | L15: 25920 | M15: 25920 | N15: 25920 | O15: 25920 | P15: 25920 | Q15: 38880 | R15: 38880 | S15: =SUM(G15:R15) -> 375840
C16: j | E16: (i / d) | F16: m3/ha/mes | G16: =+G15/G10 -> 1944 | H16: =+H15/H10 -> 1944 | I16: 1944 | J16: 1296 | K16: 1296 | L16: 1296 | M16: 1296 | N16: 1296 | O16: 1296 | P16: 1296 | Q16: 1944 | R16: 1944 | S16: =SUM(G16:R16) -> 18792
C17: k | E17: (j / f) | F17: m3/ha/dia | G17: =+G16/G12 -> 62.70967742 | H17: 69.42857143 | I17: 62.70967742 | J17: 43.2 | K17: 41.80645161 | L17: 43.2 | M17: 41.80645161 | N17: 41.80645161 | O17: 43.2 | P17: 41.80645161 | Q17: 64.8 | R17: 62.70967742 | S17: =SUM(G17:R17) -> 619.1834101

Sheet 1. Identificación
B2: FICHA TÉCNICA ESPECÍFICA SIMPLIFICADA - MEJORAMIENTO DEL SISTEMA DE RIEGO PARCELARIO
B3: (RIEGO TECNIFICADO)
B4: Basado en la Directiva N° 002-2017-EF/63.01, aprobada por Resolución Directoral N° 002-2017-EF/63.01
B5: Monto de Inversión a Precios de Mercado hasta 750 UIT
B6: (La información registrada en esta ficha tiene carácter de Declaración Jurada)
B8: I. DATOS GENERALES
B10: CÓDIGO DEL PROYECTO | G10: 28021979
B12: 1. ARTICULACIÓN CON EL PROGRAMA MULTIANUAL DE INVERSIONES (PMI)
B14: 1.1. Servicios Públicos con Brecha Identificada y Priorizada: | G14: Servicio de Riego Tecnificado
B16: 1.2. Indicador de Producto Asociado a la Brecha de Servicios: | G16: Porcentaje de Superficie Sin Tecnificación
B18: 1.3. Contribución al Cierre de Brechas | G18: 20 | H18: Hectáreas
B20: 2. NOMBRE DEL PROYECTO DE INVERSIÓN
B22: NATURALEZA DE INTERVENCIÓN | E22: OBJETO | G22: LOCALIZACIÓN
B23: MEJORAMIENTO DEL SERVICIO DE AGUA A NIVEL PARCELARIO | E23: CON UN SISTEMA DE RIEGO TECNIFICADO | G23: EN EL CENTRO POBLADO SAN LUIS – DISTRITO DE LOCROJA – PROVINCIA DE CHURCAMPA – REGIÓN HUANCAVELICA
B25: 3. RESPONSABILIDAD FUNCIONAL
B27: FUNCIÓN | E27: AGROPECUARIA
B28: DIVISIÓN FUNCIONAL | E28: RIEGO
B29: GRUPO FUNCIONAL | E29: RIEGO TECNIFICADO
B30: RESPONSABLE FUNCIONAL | E30: AGRICULTURA
B33: 4. UNIDAD FORMULADORA
B35: SECTOR | E35: GOBIERNOS LOCALES
B37: PLIEGO | E37: MUNICIPALIDAD DISTRITAL DE LOCROJA
B39: NOMBRE | E39: UNIDAD FORMULADORA DE DESARROLLO SOCIAL Y ECONÓMICO
B41: Persona Responsable de Formular la Ficha Técnica | E41: CARLOS NATIVIDAD TORERO | H41: PROFESION: | I41: ING. AGRICOLA
B43: Persona Responsable de la Unidad Formuladora | E43: LUIS LIVORA CANTELLA | H43: PROFESION: | I43: ING. AGRÍCOLA
B46: 5. UNIDAD EJECUTORA DE INVERSIONES
B48: SECTOR | E48: GOBIERNOS LOCALES
B50: PLIEGO | E50: MUNICIPALIDAD DISTRITAL DE LOCROJA
B52: NOMBRE | E52: OFICINA DE ESTUDIOS Y PROYECTOS
B54: Persona Responsable de la Unidad Ejecutora de Inversiones | E54: JUAN PORTILLA CUETO | H54: PROFESION: | I54: ING. AGRICOLA
B56: Organo Técnico Responsable | E56: GERENCIA DE INFRAESTRUCTURA Y OBRAS PÚBLICAS
B59: 6. UBICACIÓN, ACCESOS Y ADMINISTRACIÓN DEL AGUA
B61: 6.1. Ubicación Política
B63: REGIÓN | E63: HUANCAVELICA
B64: PROVINCIA | E64: CHURCAMPA
B65: DISTRITO | E65: LOCROJA
B66: LOCALIDAD | E66: CENTRO POBLADO SAN LUIS
B68: 6.2. Ubicación Geográfica
B70: COORDENADAS UTM (m) - WGS84 | E70: ESTE | F70: 657259 | G70: NORTE | H70: 9406136 | I70: ZONA | J70: 18 - M
B71: ALTURA (msnm) | E71: 2542
B72: REGIÓN NATURAL | E72: Sierra
B73: UBIGEO | E73: 090506
B75: 6.3. Ubicación Hidrografica
B77: Vertiente | C77: Atlántico | D77: Cuenca | E77: Mantaro | F77: Subcuenca | G77: Churcampa | H77: Microcuenca | I77: Churcampa
B79: 6.4. Vias de Acceso al Proyecto
B81: Tramo (DE) | C81: Tramo (HASTA) | D81: Distancia (km) | E81: Tiempo (Horas) | F81: Tipo de vía | G81: Estado (*)
B82: Lima | C82: Huancayo | D82: 300 | E82: 7 | F82: Asfaltado | G82: B
B83: Huancayo | C83: Churcampa | D83: 120 | E83: 5 | F83: Asfaltado - Afirmado | G83: R
B84: Churcampa | C84: San Luis | D84: 50 | E84: 1 | F84: Afirmado | G84: R
B85: San Luis | C85: Proyecto | D85: 15 | E85: 0.5 | F85: Trocha carrozable | G85: M
B86: (*) Valores posibles para el Estado: (B) bueno, (R) regular, (M) malo
B88: 6.5. Administración del Agua con Fines Agrícolas
B90: AUTORIDAD ADMINISTRATIVA DEL AGUA (AAA) | E90: HUANCAVELICA
B91: ADMINISTRACIÓN LOCAL DEL AGUA (ALA) | E91: HUANCAVELICA
B92: JUNTA DE USUARIOS | E92: HUANCAVELICA
B93: COMISIÓN DE USUARIOS | E93: 7 PAGOS
B94: COMITÉ DE USUARIOS | E94: SAN LUIS
B95: OTROS
B96: ORGANIZACIÓN FORMALIZADA POR LA ANA | E96: SI | F96: X | G96: NO | H96: =IF(F96="X", "", "X") -> 
B98: 6.6. Fuente Hídrica
B100: Fuente | C100: Nombre | D100: Ubicación geográfica UTM WGS84
D101: Este | E101: Norte | F101: Zona | G101: Altitud (m.s.n.m)
B102: Rio
B103: Canal
B104: Manantial (Puquial)
B105: Quebrada | C105: San Luis | D105: 657278 | E105: 9406140 | F105: 18 - M | G105: 2595
B106: Pozo
B107: Otros:
B110: II. IDENTIFICACIÓN
B112: 7. PROBLEMA CENTRAL, CAUSAS Y EFECTOS
B114: 7.1. Descripción de la Situación Actual
B116: Descipción de la situación actual
B117: Los beneficiarios del proyecto pertenecen al sector San Luis y al Comité de Riego del mismo nombre, que corresponde a la Comisión de Usuarios 7 Pagos, de la Junta de Usuarios Huancavelica. La fuente hídrica del sector es la quebrada San Luis, cuyo caudal en época de estiaje es de 15 l/s. En la actualidad el riego parcelario es por surcos (gravedad), con una baja eficiencia de aplicación de agua de riego a nivel parcelario, lo que no ha posibilitado incrementar un desarrollo tecnológico que permita innovar nuevos cultivos con tendencia a la agro-exportación y de mayor rentabilidad. Actualmente los rendimientos de sus principales cultivos (pastos y alfalfa), inducen a los agricultores a dirigir una agricultura de subsistencia regida en una informalidad de mercado destino, comprador y precio refugio. El proyecto contempla beneficiar a un total de 20 ha bajo riego, que vienen siendo conducidas por 12 familias dedicadas a la agricultura.
B119: 7.2. Problema Central
B121: Descripción del Problema Central
B122: Baja productividad agrícola en el ámbito del Centro Poblado San Luis – Distrito de Locroja – Provincia de Churcampa – Huancavelica
B124: 7.3. Causas que Generan el Problema
B126: Nº | C126: Descripción de las Principales Causas | F126: Causas Indirectas
B127: Causa 1 | C127: Ineficiencias en el uso del recurso hídrico | F127: i. Uso deficiente de técnicas de riego por gravedad (inundación, surco, etc.) ii. Poco conocimiento de técnicas de riego de mayor eficiencia
B128: Causa 2 | C128: Inadecuada disponibilidad del recurso hídrico | F128: i. Insuficiente infraestructura hidráulica ii. Inadecuada conservación de la infraestructura hidráulica iii. Poca capacidad de gestión del recurso hídrico entre usuarios
B130: 7.4. Efectos Generados por el Problema
B132: Nº | C132: Efectos Directos | F132: Efectos Indirectas
B133: Efecto 1 | C133: Bajos ingresos de los productores agrarios | F133: i. Pérdida de capital de trabajo ii. Abandono de la actividad agrícola iii. Migración
B134: Efecto 2 | C134: Disminución del grado de integración al mercado
B136: 8. POBLACIÓN AFECTADA Y POBLACIÓN OBJETIVO
B138: 8.1. Población Afectada
B140: Tipo de Población | D140: Rural | E140: Junta | G140: Comisión | H140: 7 PAGOS | I140: Nivel mayor de la OUA
B141: Número de Usuarios (Familias) | D141: 3560
B142: Número de Personas | D142: =+D141*5 -> 17800
B143: Fuente de Información | D143: Padrón de Usuarios
B145: 8.2. Población Objetivo / Beneficiarios Directos
B147: Tipo de Población | D147: Rural | E147: Comité | G147: Bloque | I147: GGE (*) | J147: SAN LUIS
B148: Número de Usuarios (Familias) | D148: 12
B149: Número de Personas | D149: =+D148*5 -> 60
B150: Fuente de Información | D150: Padrón de Usuarios | J150: GRUPO DE GESTIÓN EMPRESARIAL (*)
B152: 9. DEFINICIÓN DE LOS OBJETIVOS DEL PROYECTO
B154: 9.1. Objetivo
B156: Descripción del Objetivo Central
B157: Incremento de la productividad agrícola en el ámbito del Centro Poblado San Luis – Distrito de Locroja – Provincia Churcampa – Huancavelica
B159: 9.2. Indicadores del Objetivo
B161: Principales indicadores de la situación actual | F161: Unidad de Medida | G161: Valor Actual | H161: Meta | I161: Fuente de Verificación
B162: 1.- Bajo rendimiento agrícola del cultivo de alfalfa | F162: Kg/ha | G162: 10000 | H162: 12500 | I162: Información propia
B163: 2.- Baja eficiencia de aplicación de agua de riego a nivel parcelario | F163: % | G163: 30 | H163: 75 | I163: Información propia
B165: 9.3. Medios Fundamentales
B167: N° | C167: Descripción Medios Fundamentales
B168: 1 | C168: Utilización de técnicas de riego tecnificado
B169: 2 | C169: Mayor conocimiento de técnicas de riego más eficientes
B171: 10. ANÁLISIS DE INVOLUCRADOS
B173: Involucrado | D173: Ámbito del participante (Nacional, Regional, Local, Otros) | E173: Entidad a la que pertenece | F173: Posición (Cooperante, Beneficiario, Oponente, Perjudicado) | G173: Intereses | I173: Contribución
B174: UF Municipalidad Distrital de Locroja | D174: Local | E174: MDL | F174: Cooperante | G174: Mejorar los niveles de producción agropecuaria, propiciando su desarrollo competitivo y sostenible | I174: Financiamiento de las obras comunes y parte de las obras parcelarias
B175: Grupo de Gestión Empresarial San Luis | D175: Local | E175: JU Huancavelica | F175: Beneficiario | G175: Mejorar los niveles de productividad agropecuaria | I175: Financiamiento de parte de las obras parcelarias
B176: Autoridad Local de Agua (ALA) HUANCAVELICA | D176: Local | E176: ANA | F176: Cooperante | G176: Formalización del uso de los recursos hídricos | I176: Brindar facilidades para la obtención de la licencia de uso de agua
B177: Programa Subsectorial de Irrigaciones (PSI) | D177: Nacional | E177: MINAGRI | F177: Cooperante | G177: Fomentar el uso eficiente del recurso hídrico | I177: Asistencia técnica
B179: 11. PLANTEAMIENTO DE LAS ALTERNATIVAS DE SOLUCIÓN AL PROBLEMA
B181: Alternativas más Frecuentes | D181: Descripción
B182: Alternativa 1 | D182: Presurizado: Aspersión Semifijo y Goteo
B183: Alternativa 2 | D183: No hay Alternativa 2

Sheet 2. Balance Hídrico
B2: FICHA TÉCNICA ESPECÍFICA SIMPLIFICADA - MEJORAMIENTO DEL SISTEMA DE RIEGO PARCELARIO
B3: Basado en la Directiva N° 002-2017-EF/63.01, aprobada por Resolución Directoral N° 002-2017-EF/63.01
B4: (La información registrada en esta ficha tiene carácter de Declaración Jurada)
B6: III. FORMULACION Y EVALUACIÓN
B8: 12. HORIZONTE DE EVALUACIÓN
B10: Número de Años del Horizonte de Evaluación (AÑOS) | G10: 10
B12: Sustento técnico del horizonte de evaluación elegido
B13: El horizonte de evaluación del proyecto de riego tecnificado se ha determinado en base a los siguientes criterios: a) La obsolescencia tecnológica esperada en el sector que se va a intervenir, y b) El periodo de vida útil de los activos principales.
B15: Si el horizonte de evaluación del proyecto es mayor a 10 años, deberá sustentar el tiempo adicional:
B17: Periodo de productividad del cultivo (frutales de rendimiento tardío)
B18: Otros. Especificar
B20: 13. ESTUDIO DE MERCADO DEL SERVICIO PÚBLICO
B22: Definición del servicio público o de la cartera de servicios
B23: El servicio es la Tecnificación del Riego, que es el conjunto de componentes y tecnologías aplicadas para el riego de cultivos que permiten optimizar la eficiencia en el uso de los recursos hídricos, y lograr el incremento de la productividad agrícola (Ley N° 28585 y su Reglamento).
B25: 14. ESTIMACIÓN DE LA OFERTA HÍDRICA
B27: 14.1. Acreditación Hídrica
B29: DOCUMENTO DE ACREDITACIÓN HÍDRICA | E29: LICENCIA | F29: NO | H29: ACREDITACIÓN
B30: DOCUMENTO DE LA ANA QUE SUSTENTA LA ACREDITACIÓN | E30: Resolución Administrativa N° 007-2015-ALA-HUANCAVELICA
B32: 14.2. Cálculo de la Oferta Hídrica
B34: CAUDAL AUTORIZADO DE LA FUENTE | E34: 15 | F34: l/s
B36: MES PROMEDIO | C36: CAUDAL (l/s) | D36: FRECUENCIA DE DOTACIÓN (cada cuántos días) | E36: TIEMPO DE RIEGO (horas según área del PIP) (*) | F36: VOLUMEN DISPONIBLE (m3)
B37: =+B63 -> ENE | C37: =+Oferta!G7 -> 15 | D37: =+Oferta!G13 -> 5 | E37: =+Oferta!G11 -> 120 | F37: =+C37*3.6*ROUND(I37/D37,0)*E37 -> 38880 | I37: 31
B38: =+B64 -> FEB | C38: =+Oferta!H7 -> 15 | D38: =+Oferta!H13 -> 5 | E38: =+Oferta!H11 -> 120 | F38: =+C38*3.6*ROUND(I38/D38,0)*E38 -> 38880 | I38: 28
B39: MAR | C39: =+Oferta!I7 -> 15 | D39: =+Oferta!I13 -> 5 | E39: =+Oferta!I11 -> 120 | F39: 38880 | I39: 31
B40: ABR | C40: =+Oferta!J7 -> 15 | D40: =+Oferta!J13 -> 5 | E40: =+Oferta!J11 -> 80 | F40: 25920 | I40: 30
B41: MAY | C41: =+Oferta!K7 -> 15 | D41: =+Oferta!K13 -> 5 | E41: =+Oferta!K11 -> 80 | F41: 25920 | I41: 31
B42: JUN | C42: =+Oferta!L7 -> 15 | D42: =+Oferta!L13 -> 5 | E42: =+Oferta!L11 -> 80 | F42: 25920 | I42: 30
B43: JUL | C43: =+Oferta!M7 -> 15 | D43: =+Oferta!M13 -> 5 | E43: =+Oferta!M11 -> 80 | F43: 25920 | I43: 31
B44: AGO | C44: =+Oferta!N7 -> 15 | D44: =+Oferta!N13 -> 5 | E44: =+Oferta!N11 -> 80 | F44: 25920 | I44: 31
B45: SEP | C45: =+Oferta!O7 -> 15 | D45: =+Oferta!O13 -> 5 | E45: =+Oferta!O11 -> 80 | F45: 25920 | I45: 30
B46: OCT | C46: =+Oferta!P7 -> 15 | D46: =+Oferta!P13 -> 5 | E46: =+Oferta!P11 -> 80 | F46: 25920 | I46: 31
B47: NOV | C47: =+Oferta!Q7 -> 15 | D47: =+Oferta!Q13 -> 5 | E47: =+Oferta!Q11 -> 120 | F47: 38880 | I47: 30
B48: DIC | C48: =+Oferta!R7 -> 15 | D48: =+Oferta!R13 -> 5 | E48: =+Oferta!R11 -> 120 | F48: 38880 | I48: 31
B49: VOLUMEN TOTAL | F49: =SUM(F37:F48) -> 375840
B50: (*) Medida en la punto de toma del PIP
B51: FUENTE DE INFORMACIÓN: | D51: ALA Huancavelica - JU Huancavelica
B53: 15. ESTIMACIÓN DE LA DEMANDA HÍDRICA
B55: 15.1. Cálculo de la Demanda Hídrica - Sin Proyecto
B57: ÁREA A BENEFICIAR | E57: =+'1. Identificación'!G18 -> 20 | F57: ha
B58: MÉTODO DE RIEGO A NIVEL PARCELARIO | E58: GRAVEDAD
B59: EFICIENCIA DE APLICACIÓN | E59: 0.3
B61: MÉTODO DE RIEGO | C61: GRAVEDAD | D61: GRAVEDAD | E61: GRAVEDAD | G61: ÁREA A IRRIGAR | H61: VOLUMEN DEMANDADO
B62: CEDULA | C62: ALFALFA | D62: MAIZ | E62: PAPA | G62: ha | H62: m3
B63: ENE | C63: 15 | E63: 5 | G63: =+C63+D63+E63+F63 -> 20 | H63: =+Demanda!F21 -> 32260.66667
B64: FEB | C64: 15 | E64: 5 | G64: =+C64+D64+E64+F64 -> 20 | H64: =+Demanda!G21 -> 5688
B65: MAR | C65: 15 | G65: 15 | H65: =+Demanda!H21 -> 11390
B66: ABR | C66: 15 | D66: 5 | G66: 20 | H66: =+Demanda!I21 -> 34941.66667
B67: MAY | C67: 15 | D67: 5 | G67: 20 | H67: =+Demanda!J21 -> 52935
B68: JUN | C68: 15 | D68: 5 | G68: =+C68+D68+E68+F68 -> 20 | H68: =+Demanda!K21 -> 59842.5
B69: JUL | C69: 15 | D69: 5 | G69: 20 | H69: =+Demanda!L21 -> 65735.83333
B70: AGO | C70: 15 | D70: 5 | G70: 20 | H70: =+Demanda!M21 -> 67495.83333
B71: SEP | C71: 15 | G71: 15 | H71: =+Demanda!N21 -> 43600
B72: OCT | C72: 15 | E72: 5 | G72: 20 | H72: =+Demanda!O21 -> 22380.66667
B73: NOV | C73: 15 | E73: 5 | G73: 20 | H73: =+Demanda!P21 -> 50862.5
B74: DIC | C74: 15 | E74: 5 | G74: 20 | H74: =+Demanda!Q21 -> 21634.91667
B75: VOLUMEN TOTAL | H75: =SUM(H63:H74) -> 468767.5833
B77: FUENTE DE INFORMACIÓN: | D77: FAO (Eto, Kc, Precipitación)
B79: 15.2. Cálculo de la Demanda Hídrica - Con Proyecto
B81: ÁREA A BENEFICIAR | E81: 15 | F81: ha
B82: MÉTODO DE RIEGO A NIVEL PARCELARIO | E82: ASPERSIÓN
B83: EFICIENCIA DE APLICACIÓN | E83: 75 | F83: %
B85: ÁREA A BENEFICIAR | E85: 5 | F85: ha
B86: MÉTODO DE RIEGO A NIVEL PARCELARIO | E86: GOTEO
B87: EFICIENCIA DE APLICACIÓN | E87: 90 | F87: %
B90: MÉTODO DE RIEGO | C90: ASPERSIÓN | D90: ASPERSIÓN | E90: ASPERSIÓN | F90: GOTEO | G90: ÁREA A IRRIGAR | H90: VOLUMEN DEMANDADO
B91: CEDULA | C91: ALFALFA | D91: HABA | E91: QUINUA | F91: PALTO | G91: ha | H91: m3
B92: =+B63 -> ENE | C92: 10 | E92: 5 | F92: 5 | G92: =+C92+D92+E92+F92 -> 20 | H92: =+Balance!F26 -> 10106.68889
B93: FEB | C93: 10 | E93: 5 | F93: 5 | G93: =+C93+D93+E93+F93 -> 20 | H93: =+Balance!G26 -> 860.8
B94: MAR | C94: 10 | F94: 5 | G94: 15 | H94: =+Balance!H26 -> 3037.333333
B95: ABR | C95: 10 | D95: 5 | F95: 5 | G95: 20 | H95: =+Balance!I26 -> 12390.05556
B96: MAY | C96: 10 | D96: 5 | F96: 5 | G96: 20 | H96: =+Balance!J26 -> 19580.3
B97: JUN | C97: 10 | D97: 5 | F97: 5 | G97: 20 | H97: =+Balance!K26 -> 19090
B98: JUL | C98: 10 | D98: 5 | F98: 5 | G98: 20 | H98: =+Balance!L26 -> 21661.72222
B99: AGO | C99: 10 | D99: 5 | F99: 5 | G99: 20 | H99: =+Balance!M26 -> 24846.83778
B100: SEP | C100: 10 | F100: 5 | G100: 15 | H100: =+Balance!N26 -> 19425.27778
B101: OCT | C101: 10 | E101: 5 | F101: 5 | G101: 20 | H101: =+Balance!O26 -> 8188.444444
B102: NOV | C102: 10 | E102: 5 | F102: 5 | G102: 20 | H102: =+Balance!P26 -> 17546.16667
B103: DIC | C103: 10 | E103: 5 | F103: 5 | G103: 20 | H103: =+Balance!Q26 -> 5827.722222
B104: VOLUMEN TOTAL | H104: =SUM(H92:H103) -> 162561.3489
B106: FUENTE DE INFORMACIÓN: | D106: FAO (Eto, Kc, Precipitación)
B108: 16. ESTIMACIÓN DEL BALANCE HÍDRICO
B110: 16.1. Cálculo del Balance Hídrico - Sin Proyecto
B112: MES | C112: Balance Hídrico Sin Proyecto (m3)
B113: =+B92 -> ENE | C113: =+F37-H63 -> 6619.333333
B114: FEB | C114: 33192
B115: MAR | C115: 27490
B116: ABR | C116: -9021.666667
B117: MAY | C117: -27015
B118: JUN | C118: -33922.5
B119: JUL | C119: -39815.83333
B120: AGO | C120: -41575.83333
B121: SEP | C121: -17680
B122: OCT | C122: 3539.333333
B123: NOV | C123: -11982.5
B124: DIC | C124: 17245.08333
B125: VOLUMEN TOTAL | C125: =SUM(C113:C124) -> -92927.58333
B128: 16.2. Cálculo del Balance Hídrico - Con Proyecto
B130: MES | C130: Balance Hídrico Con Proyecto (m3)
B131: =+B113 -> ENE | C131: =+F37-H92 -> 28773.31111
B132: =+B114 -> FEB | C132: 38019.2
B133: MAR | C133: 35842.66667
B134: ABR | C134: 13529.94444
B135: MAY | C135: 6339.7
B136: JUN | C136: 6830
B137: JUL | C137: 4258.277778
B138: AGO | C138: 1073.162222
B139: SEP | C139: 6494.722222
B140: OCT | C140: 17731.55556
B141: NOV | C141: 21333.83333
B142: DIC | C142: 33052.27778
B143: VOLUMEN TOTAL | C143: =SUM(C131:C142) -> 213278.6511
B146: 17. ANALISIS TECNICO
B148: 17.1 Análisis de tamaño
B149: El proyecto abarca un área de 20.0 ha, de acuerdo con la disponibilidad de área bajo riego de los beneficiarios directos del proyecto, y considerando la acreditación hídrica emitida por la ALA Huancavelica.
B151: 17.2 Análisis de localización
B152: Los beneficiarios forman parte de la JU Huancavelica, que conforma la CU 7 Pagos, y el Comité de Ususarios San Luis, los mismos que cumplen con los requisitos establecidos en la Ley N° 28585 y su Reglamento, para acceder a los incentivos de riego tecnificado promovidos por el Estado.
B154: 17.3 Análisis de tecnología
B155: Se ha optado por los sistemas de riego tecnificado por aspersión y goteo, de acuerdo con la cédula de cultivo propuesta, y las condiciones topográficas

Sheet 3. Costos
B2: FICHA TÉCNICA ESPECÍFICA SIMPLIFICADA - MEJORAMIENTO DEL SISTEMA DE RIEGO PARCELARIO
B3: Basado en la Directiva N° 002-2017-EF/63.01, aprobada por Resolución Directoral N° 002-2017-EF/63.01
B4: (La información registrada en esta ficha tiene carácter de Declaración Jurada)
B6: III. FORMULACION Y EVALUACIÓN
B8: 18. DESCRIPCION DE LA ALTERNATIVA DE SOLUCIÓN AL PROBLEMA
B10: Tipo de Sistema de Riego | C10: Descripción
B11: =+'1. Identificación'!D182 -> Presurizado: Aspersión Semifijo y Goteo | C11: El recurso hídrico se captará en la Quebrada San Luis (Toma Huambasi), con un caudal de 15 l/s, para lo cual se mejorará la estructura existente con concreto. A partir de este punto se construirá un canal de aducción de concreto hasta un desarenador, antes de ingresar a un reservorio revestido de geomembrana de HDPE (e=1.0 mm). Desde este punto se instalará un sistema de conducción con tubería de HDPE, y para la distribución se utilizará tubería de PVC. Se irrigarán un total de 20 ha mediante el sistema de riego por aspersión semifijo (15 ha) y goteo (5 ha). El proyecto contempla la capacitación en operación y mantenimiento del sistema de riego instalado, y la asistencia técnica para el manejo del cultivo con un sistema de riego tecnificado.
B14: 19. ESTIMACIÓN DE LOS COSTOS DE INVERSIÓN, METAS FÍSICAS Y PLAZOS DEL PROYECTO
B16: 19.1. Estimación del Costo de Inversión del Proyecto
E18: UNIDAD DE PRODUCCIÓN | H18: COSTO A PRECIOS DE MERCADO (S/) | I18: CAPACIDAD DE PRODUCCIÓN
B19: DESCRIPCIÓN DEL PRODUCTO | C19: DESCRIPCIÓN DE LAS ACCIONES | D19: TIPO DE ÍTEM | E19: UNIDAD DE MEDIDA | F19: META | G19: COSTO UNITARIO (S/) | I19: UNIDAD DE MEDIDA | J19: META
B20: Estudios Definitivos | C20: Expediente Técnico | D20: Estudios | H20: 25000
B21: Instalación de Equipos de Riego | C21: Obras Comunes
C22: Componentes de Captación | D22: Toma en quebrada o río | E22: und | F22: 1 | G22: 3250 | H22: =+F22*G22 -> 3250 | I22: l/s | J22: 15
C23: Componentes de Aducción | D23: Canal de concreto | E23: m | F23: 50 | G23: 65 | H23: 3250 | I23: l/s | J23: 15
C24: Obras de Sedimentación | D24: Concreto | E24: und | F24: 1 | G24: 11000 | H24: 11000 | I24: l/s | J24: 15
C25: Componentes de Almacenamiento o Cámara de Carga | D25: Revestimiento con geomenbrana | E25: und | F25: 1 | G25: 65000 | H25: 65000 | I25: m3 | J25: 850
C26: Componentes de Impulsión (unidad de bombeo) (*) | D26: No comtempla | E26: und | H26: 0 | I26: l/s
C27: Componente de Fertirrigación | D27: No comtempla | E27: und | H27: 0 | I27: l/hr
C28: Componentes de Filtrado (indicar capacidad de filtrado en m3/hr) | D28: No comtempla | E28: und | H28: 0 | I28: m3/hr
C29: Componentes de Conducción | D29: Tuberia de HDPE | E29: m | F29: 580 | G29: 100 | H29: 58000 | I29: l/s | J29: 8
C30: Componentes de Distribución | D30: Tuberia de PVC | E30: m | F30: 670 | G30: 50 | H30: 33500 | I30: l/s | J30: 8
C31: Caseta de Control | D31: No comtempla | E31: und | H31: 0
C32: Componentes de Automatización | D32: No comtempla | E32: und | H32: 0
C33: Equipos de Control y Protección | D33: Varios | E33: gbl | F33: 1 | G33: 21500 | H33: 21500
C34: Obras de Arte | D34: Varios | E34: gbl | F34: 1 | G34: 20000 | H34: 20000
C35: Arcos de Riego | D35: Válvulas hidráulicas | E35: gbl | F35: 1 | G35: 17500 | H35: 17500
C36: Otros | D36: Otros equipos | E36: gbl | H36: 0
C37: Obras Parcelarias
C38: Obras a Nivel Parcelario | D38: Riego por goteo | E38: ha | F38: =+'2. Balance Hídrico'!E57 -> 20 | G38: 7500 | H38: =+F38*G38 -> 150000
B39: Capacitación y Asistencia Técnica | C39: Capacitación en Operación y Mantenimiento del Sistema de Riego | D39: Módulo de capacitación | E39: gbl | F39: 1 | G39: =+'Selección de Datos'!C2*'2. Balance Hídrico'!E57 -> 4000 | H39: =+F39*G39 -> 4000
C40: Asistencia Técnica en el Manejo de Cultivos con Riego Tecnificado | D40: Módulo de capacitación | E40: gbl | F40: 1 | G40: 15000 | H40: =+F40*G40 -> 15000
G41: SUBTOTAL | H41: =SUM(H20:H40) -> 427000
B43: FUENTE DE INFORMACIÓN: | C43: Cotizaciones de proveedores de equipos de riego y de servicios
B45: (*) Potencia acumulada (Hp)
B48: 19.2. Resumen del Costo de Inversión del Proyecto y Plazos Referenciales de Ejecución
B50: DESCRIPCIÓN | F50: PARCIAL (S/) | G50: OBRAS COMUNES (S/) | H50: OBRAS PARCELARIAS (S/) | I50: FECHA DE INICIO | J50: FECHA DE TÉRMINO
B52: Componente 1: Costos del Estudio Definitivo (Expediente Técnico, CIRA, Certificación Ambiental, otros) | F52: =+H20 -> 25000 | G52: =+F52 -> 25000 | I52: 2017-07-01 | J52: =+I52+60 -> 2017-08-30
B53: Componente 2: Estimación de los Costos de Instalación de Equipos de Riego | F53: =+G53+H53 -> 383000 | G53: =+SUM(H22:H36) -> 233000 | H53: =+H38 -> 150000 | I53: =+J52+45 -> 2017-10-14 | J53: =+I53+90 -> 2018-01-12
B54: Componente 3: Costos de Capacitación en Operación y Mantenimiento del Sistema de Riego | F54: =+G39 -> 4000 | G54: =+F54 -> 4000 | I54: =+I53 -> 2017-10-14 | J54: =+J53 -> 2018-01-12
B55: Componente 4: Costos de Asistencia Técnica en el Manejo de Cultivos con Riego Tecnificado | F55: =+G40 -> 15000 | G55: =+F55 -> 15000 | I55: =+J54 -> 2018-01-12 | J55: =+I55+180 -> 2018-07-11
B57: COSTO TOTAL DE INVERSIÓN DEL PROYECTO | F57: =+F52+F53+F54+F55 -> 427000 | G57: =+G52+G53+G54+G55 -> 277000 | H57: 150000
B60: 19.3. Estimación de Indicadores de los Costos de Inversión del Proyecto
B62: DESCRIPCIÓN | G62: COSTO (S/) | H62: PORCENTAJE (%)
B63: COSTO DE INVERSION TOTAL (S/ ) | G63: =+F57 -> 427000 | H63: =+G63/G63 -> 1
B64: APORTE REFERENCIAL DEL ESTADO (S/ ) | G64: =+G57+(0.8*H57) -> 397000 | H64: =+G64/G63 -> 0.9297423888
B65: APORTE REFERENCIAL DE LOS BENEFICIARIOS (S/ ) | G65: =+H57*0.2 -> 30000 | H65: =+G65/G63 -> 0.07025761124
B67: COSTO DE INVERSION POR HECTÁREA BENEFICIADA (Soles/ha) | G67: =+G63/'2. Balance Hídrico'!E57 -> 21350 | H67: =+G67/G67 -> 1
B68: APORTE REFERENCIAL DEL ESTADO (Soles/ha) | G68: =+G67*H64 -> 19850 | H68: =+G68/G67 -> 0.9297423888
B69: APORTE REFERENCIAL DE LOS BENEFICIARIOS (Soles/ha) | G69: =+H65*G67 -> 1500 | H69: =+G69/G67 -> 0.07025761124
B71: 19.4. Costo de Inversión por Beneficiario Directo
B73: DESCRIPCIÓN | G73: COSTO (S/)
B74: COSTO DE INVERSIÓN POR BENEFICIARIO DIRECTO (S/ ) (*) | G74: =+G63/'1. Identificación'!D148 -> 35583.33333
B75: (*) Este valor se puede considerar como el ratio Costo / Eficiencia, debido a que, por lo general, el 100% de la inversión se realiza en el Año 0 (cero).
B77: 19.5. Modalidad de Ejecución
B79: MODALIDAD DE EJECUCIÓN | D79: ADMINISTRACIÓN INDIRECTA - LEY N° 28585 PRT
B82: 20. CRONOGRAMA DE EJECUCIÓN
B84: 20.1 Cronograma de Ejecución Física (% de avance)
B86: Principales Rubros | D86: AÑO 1 | H86: AÑO 2 | I86: AÑO 3 | J86: TOTAL
D87: mes 1-3 | E87: mes 4-6 | F87: mes 7-9 | G87: mes 10-12
B88: Componente 1: Estudio Definitivo | D88: 1 | J88: =SUM(D88:I88) -> 1
B89: Componente 2: Riego Tecnificado | E89: 0.9 | F89: 0.1 | J89: =SUM(D89:I89) -> 1
B90: Componente 3: Capacitación en O&M | E90: 0.9 | F90: 0.1 | J90: =SUM(D90:I90) -> 1
B91: Componente 4: Asistencia Técnica | F91: 0.25 | G91: 0.25 | H91: 0.5 | J91: =SUM(D91:I91) -> 1
B94: 20.2 Cronograma de Inversión según Componentes (Soles)
B96: Principales Rubros | D96: AÑO 1 | H96: AÑO 2 | I96: AÑO 3 | J96: TOTAL
D97: mes 1-3 | E97: mes 4-6 | F97: mes 7-9 | G97: mes 10-12
B98: =+B88 -> Componente 1: Estudio Definitivo | D98: =+D88*$F$52 -> 25000 | E98: 0 | F98: 0 | G98: 0 | H98: 0 | I98: 0 | J98: =SUM(D98:I98) -> 25000
B99: =+B89 -> Componente 2: Riego Tecnificado | D99: =+$F$53*D89 -> 0 | E99: 344700 | F99: 38300 | G99: 0 | H99: 0 | I99: 0 | J99: =SUM(D99:I99) -> 383000
B100: Componente 3: Capacitación en O&M | D100: =+$F$54*D90 -> 0 | E100: 3600 | F100: 400 | G100: 0 | H100: 0 | I100: 0 | J100: =SUM(D100:I100) -> 4000
B101: Componente 4: Asistencia Técnica | D101: =+$F$55*D91 -> 0 | E101: 0 | F101: 3750 | G101: 3750 | H101: 7500 | I101: 0 | J101: =SUM(D101:I101) -> 15000
B102: SUBTOTAL | D102: =+SUM(D98:D101) -> 25000 | E102: =+SUM(E98:E101) -> 348300 | F102: 42450 | G102: 3750 | H102: 7500 | I102: 0 | J102: 427000
B105: 21. ESTIMACIÓN DE LOS COSTOS DE REPOSICIÓN
B107: COSTO REFERENCIAL ANUAL (S/) | G107: =+H38*0.3 -> 45000
B109: AÑO DE APLICACIÓN DEL COSTO DE REPOSICIÓN | G109: 5
B112: 22. ESTIMACIÓN DE LOS COSTOS DE OPERACIÓN Y MANTENIMIENTO DEL SISTEMA DE RIEGO
B114: COSTO REFERENCIAL SIN PROYECTO (ANUAL) | F114: COSTO REFERENCIAL CON PROYECTO (ANUAL)
B116: INSUMO | C116: COSTO (S/) | F116: INSUMO | H116: COSTO (S/)
B117: Mano de Obra | C117: 8500 | F117: Mano de Obra | H117: 15500
B118: Materiales | C118: 2500 | F118: Materiales | H118: 3600
B119: Herramientas | C119: 1800 | F119: Herramientas | H119: 1200
B120: Gastos para Impulsión (*) | F120: Gastos para Impulsión (*)
B121: SUBTOTAL (S/) | C121: =+SUM(C117:C120) -> 12800 | F121: SUBTOTAL (S/) | H121: =+SUM(H117:H120) -> 20300
B123: (*) DATOS PARA GASTOS DE IMPULSIÓN (SIN PROYECTO) | F123: (*) DATOS PARA GASTOS DE IMPULSIÓN (CON PROYECTO)
B125: Potencia en Hp | F125: Potencia en Hp | I125: =+C45 -> 0
B126: Potencia en Kw | F126: Potencia en Kw | I126: =+C45*'Selección de Datos'!C103 -> 0
B127: Tiempo de operación diario promerio (hr) | F127: Tiempo de operación diario promerio (hr)
B128: Número de días de operación promerio (días) | F128: Número de días de operación promerio (días)
B130: Motor eléctrico: | F130: Motor eléctrico:
B131: Tarfia de consumo eléctrico (Soles/Kw x hr) | F131: Tarfia de consumo eléctrico (Soles/Kw x hr)
B133: Motor a combustión: | F133: Motor a combustión:
B134: Consumo promedio de combustible (gal/Hp x hr) | F134: Consumo promedio de combustible (gal/Hp x hr)
B135: Costo del combustible (Soles/gal) | F135: Costo del combustible (Soles/gal)

Sheet 4. Beneficios
B2: FICHA TÉCNICA ESPECÍFICA SIMPLIFICADA - MEJORAMIENTO DEL SISTEMA DE RIEGO PARCELARIO
B3: Basado en la Directiva N° 002-2017-EF/63.01, aprobada por Resolución Directoral N° 002-2017-EF/63.01
B4: (La información registrada en esta ficha tiene carácter de Declaración Jurada)
B6: III. FORMULACION Y EVALUACION
B8: 23. ESTIMACIÓN DE LOS BENEFICIOS DEL PROYECTO
B10: 23.1. Cálculo del Valor Neto de la Producción - Sin Proyecto
B12: CULTIVOS ESTACIONALES
B14: Cultivo | C14: =+'2. Balance Hídrico'!D62 -> MAIZ | D14: =+'2. Balance Hídrico'!E62 -> PAPA
B15: Área de Cédula (ha) | C15: =+'2. Balance Hídrico'!D66 -> 5 | D15: =+'2. Balance Hídrico'!E64 -> 5
B16: Rendimiento (Kg/ha) | C16: 5000 | D16: 10000
B17: Precio en Chacra (Soles/Kg) | C17: 0.8 | D17: 0.6
B18: VBP (S/ ) | C18: =+C16*C15*C17 -> 20000 | D18: =+D16*D15*D17 -> 30000 | E18: =+E16*E15*E17 -> 0 | F18: =+F16*F15*F17 -> 0 | G18: =+G16*G15*G17 -> 0
B20: Costo de Producción Unitario (Soles/ha) | C20: 3000 | D20: 5000
B21: VNP (S/ ) | C21: =+C18-(C15*C20) -> 5000 | D21: =+D18-(D15*D20) -> 5000 | E21: =+E18-(E15*E20) -> 0 | F21: =+F18-(F15*F20) -> 0 | G21: =+G18-(G15*G20) -> 0
B23: CULTIVOS PERMANENTES
B25: =+'2. Balance Hídrico'!C62 -> ALFALFA | C25: AÑO 1 | D25: AÑO 2 | E25: AÑO 3 | F25: AÑO 4 | G25: AÑO 5 | H25: AÑO 6 | I25: AÑO 7 | J25: AÑO 8 | K25: AÑO 9 | L25: AÑO 10
B26: Área de Cédula (ha) | C26: =+'2. Balance Hídrico'!C63 -> 15 | D26: =+C26 -> 15 | E26: =+D26 -> 15 | F26: 15 | G26: 15 | H26: 15 | I26: 15 | J26: 15 | K26: 15 | L26: 15
B27: Rendimiento (Kg/ha) | C27: 10000 | D27: =+C27 -> 10000 | E27: =+D27 -> 10000 | F27: 10000 | G27: 10000 | H27: 10000 | I27: 10000 | J27: 10000 | K27: 10000 | L27: 10000
B28: Precio en Chacra (Soles/Kg) | C28: 0.15 | D28: =+C28 -> 0.15 | E28: =+D28 -> 0.15 | F28: 0.15 | G28: 0.15 | H28: 0.15 | I28: 0.15 | J28: 0.15 | K28: 0.15 | L28: 0.15
B29: VBP (S/ ) | C29: =+C26*C27*C28 -> 22500 | D29: =+D26*D27*D28 -> 22500 | E29: 22500 | F29: 22500 | G29: 22500 | H29: 22500 | I29: 22500 | J29: 22500 | K29: 22500 | L29: 22500
B31: Costo de Producción Unitario (Soles/ha) | C31: 1300 | D31: =+C31 -> 1300 | E31: =+D31 -> 1300 | F31: =+E31 -> 1300 | G31: 1300 | H31: 1300 | I31: 1300 | J31: 1300 | K31: 1300 | L31: 1300
B32: VNP (S/ ) | C32: =+C29-(C26*C31) -> 3000 | D32: =+D29-(D26*D31) -> 3000 | E32: 3000 | F32: 3000 | G32: 3000 | H32: 3000 | I32: 3000 | J32: 3000 | K32: 3000 | L32: 3000
C35: AÑO 1 | D35: AÑO 2 | E35: AÑO 3 | F35: AÑO 4 | G35: AÑO 5 | H35: AÑO 6 | I35: AÑO 7 | J35: AÑO 8 | K35: AÑO 9 | L35: AÑO 10
B36: Área de Cédula (ha) | C36: =+'[2]Balance Hídrico'!C73 -> 0 | D36: =+C36 -> 0 | E36: 0 | F36: 0 | G36: 0 | H36: 0 | I36: 0 | J36: 0 | K36: 0 | L36: 0
B37: Rendimiento (Kg/ha) | C37: 0 | D37: 0 | E37: 0 | F37: 0 | G37: 0 | H37: 0 | I37: 0 | J37: 0 | K37: 0 | L37: 0
B38: Precio en Chacra (Soles/Kg) | C38: 0 | D38: =+C38 -> 0 | E38: 0 | F38: 0 | G38: 0 | H38: 0 | I38: 0 | J38: 0 | K38: 0 | L38: 0
B39: VBP (S/ ) | C39: =+C36*C37*C38 -> 0 | D39: =+D36*D37*D38 -> 0 | E39: 0 | F39: 0 | G39: 0 | H39: 0 | I39: 0 | J39: 0 | K39: 0 | L39: 0
B41: Costo de Producción Unitario (Soles/ha) | C41: 0 | D41: 0 | E41: 0 | F41: 0 | G41: 0 | H41: 0 | I41: 0 | J41: 0 | K41: 0 | L41: 0
B42: VNP (S/ ) | C42: =+C39-(C36*C41) -> 0 | D42: =+D39-(D36*D41) -> 0 | E42: 0 | F42: 0 | G42: 0 | H42: 0 | I42: 0 | J42: 0 | K42: 0 | L42: 0
B45: 23.2. Cálculo del Valor Neto de la Producción - Con Proyecto
B47: CULTIVOS ESTACIONALES
B49: Cultivo | C49: =+'2. Balance Hídrico'!D91 -> HABA | D49: =+'2. Balance Hídrico'!E91 -> QUINUA
B50: Área de Cédula (ha) | C50: =+'2. Balance Hídrico'!D95 -> 5 | D50: =+'2. Balance Hídrico'!E92 -> 5
B51: Rendimiento (Kg/ha) | C51: 6000 | D51: 4500
B52: Precio en Chacra (Soles/Kg) | C52: 1.5 | D52: 3.5
B53: VBP (S/ ) | C53: =+C51*C50*C52 -> 45000 | D53: =+D51*D50*D52 -> 78750 | E53: =+E51*E50*E52 -> 0 | F53: =+F51*F50*F52 -> 0 | G53: =+G51*G50*G52 -> 0
B55: Costo de Producción Unitario (Soles/ha) | C55: 4500 | D55: 5000 | E55: 9000
B56: VNP (S/ ) | C56: =+C53-(C50*C55) -> 22500 | D56: =+D53-(D50*D55) -> 53750 | E56: =+E53-(E50*E55) -> 0 | F56: =+F53-(F50*F55) -> 0 | G56: =+G53-(G50*G55) -> 0
B59: CULTIVOS PERMANENTES
B61: =+'2. Balance Hídrico'!C91 -> ALFALFA | C61: AÑO 1 | D61: AÑO 2 | E61: AÑO 3 | F61: AÑO 4 | G61: AÑO 5 | H61: AÑO 6 | I61: AÑO 7 | J61: AÑO 8 | K61: AÑO 9 | L61: AÑO 10
B62: Área de Cédula (ha) | C62: =+'2. Balance Hídrico'!C92 -> 10 | D62: =+C62 -> 10 | E62: =+D62 -> 10 | F62: 10 | G62: 10 | H62: 10 | I62: 10 | J62: 10 | K62: 10 | L62: 10
B63: Rendimiento (Kg/ha) | C63: 12500 | D63: =+C63 -> 12500 | E63: =+D63 -> 12500 | F63: 12500 | G63: 12500 | H63: 12500 | I63: 12500 | J63: 12500 | K63: 12500 | L63: 12500
B64: Precio en Chacra (Soles/Kg) | C64: 0.15 | D64: =+C64 -> 0.15 | E64: =+D64 -> 0.15 | F64: 0.15 | G64: 0.15 | H64: 0.15 | I64: 0.15 | J64: 0.15 | K64: 0.15 | L64: 0.15
B65: VBP (S/ ) | C65: =+C62*C63*C64 -> 18750 | D65: 18750 | E65: 18750 | F65: 18750 | G65: 18750 | H65: 18750 | I65: 18750 | J65: 18750 | K65: 18750 | L65: 18750
B67: Costo de Producción Unitario (Soles/ha) | C67: 1400 | D67: =+C67 -> 1400 | E67: =+D67 -> 1400 | F67: =+E67 -> 1400 | G67: 1400 | H67: 1400 | I67: 1400 | J67: 1400 | K67: 1400 | L67: 1400
B68: VNP (S/ ) | C68: =+C65-(C62*C67) -> 4750 | D68: 4750 | E68: 4750 | F68: 4750 | G68: 4750 | H68: 4750 | I68: 4750 | J68: 4750 | K68: 4750 | L68: 4750
B71: =+'2. Balance Hídrico'!F91 -> PALTO | C71: AÑO 1 | D71: AÑO 2 | E71: AÑO 3 | F71: AÑO 4 | G71: AÑO 5 | H71: AÑO 6 | I71: AÑO 7 | J71: AÑO 8 | K71: AÑO 9 | L71: AÑO 10
B72: Área de Cédula (ha) | C72: =+'2. Balance Hídrico'!F92 -> 5 | D72: =+C72 -> 5 | E72: =+D72 -> 5 | F72: 5 | G72: 5 | H72: 5 | I72: 5 | J72: 5 | K72: 5 | L72: 5
B73: Rendimiento (Kg/ha) | C73: 0 | D73: 0 | E73: 0 | F73: 3500 | G73: 7500 | H73: 10000 | I73: 14000 | J73: 14000 | K73: 14000 | L73: 14000
B74: Precio en Chacra (Soles/Kg) | C74: 3.5 | D74: =+C74 -> 3.5 | E74: =+D74 -> 3.5 | F74: =+E74 -> 3.5 | G74: 3.5 | H74: 3.5 | I74: 3.5 | J74: 3.5 | K74: 3.5 | L74: 3.5
B75: VBP (S/ ) | C75: =+C72*C73*C74 -> 0 | D75: 0 | E75: 0 | F75: 61250 | G75: 131250 | H75: 175000 | I75: 245000 | J75: 245000 | K75: 245000 | L75: 245000
B77: Costo de Producción Unitario (Soles/ha) | C77: 15000 | D77: 7500 | E77: =+D77 -> 7500 | F77: =+E77 -> 7500 | G77: 7500 | H77: 7500 | I77: 7500 | J77: 7500 | K77: 7500 | L77: 7500
B78: VNP (S/ ) | C78: =+C75-(C72*C77) -> -75000 | D78: -37500 | E78: -37500 | F78: 23750 | G78: 93750 | H78: 137500 | I78: 207500 | J78: 207500 | K78: 207500 | L78: 207500
B81: 24. EVALUACIÓN COSTO - BENEFICIO
B83: 24.1. Estimación del Flujo de Caja Privado
B85: TASA DE DESCUENTO | C85: 0.08
B87: AÑO DE EVALUACIÓN | C87: BENEFICIOS INCREMENTALES (S/ ) | D87: COSTOS INCREMENTALES (S/ ) | E87: FLUJO DE CAJA (S/ ) | Q87: VBP SIN PROY | R87: VBP CON PROY | U87: BENEFICIOS SIN PROYECTO | V87: BENEFICIOS CON PROYECTO
B88: AÑO 0 | D88: =+'[2]FyE Costos'!G71 -> 427000 | E88: =+C88-D88 -> -427000
B89: AÑO 1 | C89: =+V89-U89 -> -7000 | D89: =+'[2]FyE Costos'!H124-'[2]FyE Costos'!C124 -> 7500 | E89: =+C89-D89 -> -14500 | P89: AÑO 1 | Q89: =+C18+D18+C29 -> 72500 | R89: =+C53+D53+C65+C75 -> 142500 | U89: =+C32+C21+D21 -> 13000 | V89: =+C56+D56+C68+C78 -> 6000
B90: AÑO 2 | C90: 30500 | D90: =+D89 -> 7500 | E90: 23000 | P90: AÑO 2 | Q90: =+Q89 -> 72500 | R90: =+C53+D53+D65+D75 -> 142500 | U90: =+C21+D21+D32 -> 13000 | V90: =+C56+D56+D68+D78 -> 43500
B91: AÑO 3 | C91: 30500 | D91: =+D90 -> 7500 | E91: 23000 | P91: AÑO 3 | Q91: =+Q90 -> 72500 | R91: =+C53+D53+E65+E75 -> 142500 | U91: =+E32+C21+D21 -> 13000 | V91: =+C56+D56+E68+E78 -> 43500
B92: AÑO 4 | C92: 91750 | D92: 7500 | E92: 84250 | P92: AÑO 4 | Q92: =+Q91 -> 72500 | R92: =+C53+D53+F65+F75 -> 203750 | U92: =+C21+D21+F32 -> 13000 | V92: =+C56+D56+F68+F78 -> 104750
B93: AÑO 5 | C93: 161750 | D93: =+D92+'[2]FyE Costos'!G110 -> 52500 | E93: 109250 | P93: AÑO 5 | Q93: 72500 | R93: =+C53+D53+G65+G75 -> 273750 | U93: =+C21+D21+G32 -> 13000 | V93: =+C56+D56+G68+G78 -> 174750
B94: AÑO 6 | C94: 205500 | D94: =+D92 -> 7500 | E94: 198000 | P94: AÑO 6 | Q94: 72500 | R94: =+C53+D53+H65+H75 -> 317500 | U94: =+C21+D21+H32 -> 13000 | V94: =+C56+D56+H68+H78 -> 218500
B95: AÑO 7 | C95: 275500 | D95: 7500 | E95: 268000 | P95: AÑO 7 | Q95: 72500 | R95: =+C53+D53+I65+I75 -> 387500 | U95: =+C21+D21+I32 -> 13000 | V95: =+C56+D56+I68+I78 -> 288500
B96: AÑO 8 | C96: 275500 | D96: 7500 | E96: 268000 | P96: AÑO 8 | Q96: 72500 | R96: =+C53+D53+J65+J75 -> 387500 | U96: =+C21+D21+J32 -> 13000 | V96: =+C56+D56+J68+J78 -> 288500
B97: AÑO 9 | C97: 275500 | D97: 7500 | E97: 268000 | P97: AÑO 9 | Q97: 72500 | R97: =+C53+D53+K65+K75 -> 387500 | U97: =+C21+D21+K32 -> 13000 | V97: =+C56+D56+K68+K78 -> 288500
B98: AÑO 10 | C98: 275500 | D98: 7500 | E98: 268000 | P98: AÑO 10 | Q98: 72500 | R98: =+C53+D53+L65+L75 -> 387500 | U98: =+C21+D21+L32 -> 13000 | V98: =+C56+D56+L68+L78 -> 288500
Q99: =SUM(Q89:Q98) -> 725000 | R99: =SUM(R89:R98) -> 2772500
B101: 24.2. Estimación de los Indicadores de Rentabilidad
B103: VAN (S/ ) | C103: =NPV(C85,E89:E98)+E88 -> 417974.639
B104: TIR (%) | C104: =IRR(E88:E98) -> 0.1888862259
B105: B/C | C105: =NPV(C85,E89:E98)/(-E88) -> 1.978863323

Sheet 5. Sostenibilidad
B2: FICHA TÉCNICA ESPECÍFICA SIMPLIFICADA - MEJORAMIENTO DEL SISTEMA DE RIEGO PARCELARIO
B3: Basado en la Directiva N° 002-2017-EF/63.01, aprobada por Resolución Directoral N° 002-2017-EF/63.01
B4: (La información registrada en esta ficha tiene carácter de Declaración Jurada)
B6: IV. REQUISITOS INSTITUCIONALES Y/O NORMATIVOS
B8: 25. SOSTENIBILIDAD
B10: 25.1. Responsable de la Operación y Mantenimiento del PIP
B11: GRUPO DE GESTIÓN EMPRESARIAL SAN LUIS
B13: 25.2. Documentos que sustentan los acuerdos institucionales u otros que garantizan el financiamiento de los gastos de operación y mantenimiento
B15: Entidad / Organización | E15: Documento | F15: Compromiso
B16: =+B11 -> GRUPO DE GESTIÓN EMPRESARIAL SAN LUIS | E16: Acta de Compromisos | F16: Operar y mantener de forma adecuada el sistema de riego tecnificado, acorde con las recomendaciones impartidas durante el proceso de capacitación.
B17: =+B16 -> GRUPO DE GESTIÓN EMPRESARIAL SAN LUIS | E17: Acta de Compromisos | F17: Cumplir con implementar la cédula de cultivo propuesta.
B19: 26. GESTIÓN DEL RIESGO EN CONTEXTO DE CAMBIO CLIMÁTICO
B21: 26.1. ¿El área donde se ubica el proyecto ha sido afectada por algún desastre natural?
B23: NO | C23: X
B24: SI | C24: =IF(C23="X", "", "X") -> 
B26: 26.2. ¿Qué medidas de reducción de riesgos se están incluyendo en el proyecto de inversión?
B28: Peligros | D28: Nivel (BAJO, MEDIO, ALTO) | E28: Medidas de Reducción de Riesgo en Contexto de Cambio Climático | J28: Costo (S/)
B29: Sismos
B30: Tsunamis
B31: Heladas
B32: Friajes
B33: Erupciones Volcánicas
B34: Sequías
B35: Granizadas
B36: Lluvias intensas.
B37: Avalanchas
B38: Flujos de lodo (Huaicos)
B39: Deslizamientos
B40: Inundaciones
B41: Vientos fuertes
B42: Otros (Especificar):
B44: TOTAL | J44: =SUM(J29:J43) -> 0
B46: 27. CERTIFICACIÓN AMBIENTAL
B48: 27.1. ¿El PIP cuenta con la certificación ambiental emitida por la DGAAA - MINAGRI?
B50: NO
B51: SI | C51: =IF(C50="X", "", "X") -> X
B53: 27.2. Impactos Ambientales Negativos y Medidas de Mitigación
B55: Impactos Negativos | F55: Medidas de Mitigación | J55: Costo (S/)
B56: Durante la Ejecución | J56: =+J57+J58+J59 -> 0
B57: Acción 1:
B58: Acción 2:
B59: Acción 3:
B60: Durante la Operación | J60: =+J61+J62+J63 -> 0
B61: Acción 1:
B62: Acción 2:
B63: Acción 3:
B64: TOTAL | J64: =+J60+J56 -> 0
B66: 28. DOCUMENTOS PARA VIABILIDAD
B67: Constancia de disponibilidad hídrica o licencia para uso de agua de riego, otorgada por la Autoridad Nacional del Agua - ANA.
B68: Acta de constitución del Grupo de Gestión Empresarial (Grupo de Beneficiarios).
B69: Copia de DNI de los beneficiarios directos del proyecto.
B70: Documentos de acreditación de propiedad o posesión del terreno de los beneficiarios.
B71: Acreditaciones como usuarios de agua emitida por la Organización de Usuarios de Agua.
B72: Acta de compromiso de aporte de contrapartida económica de los beneficiarios.
B73: Acta de compromiso de operación y mantenimiento del sistema de riego instalado.
B74: Constancia de rol de distribución de agua emitido por la OUA.
B76: 29. ANEXOS
B78: Croquis de Ubicación
B79: Plano de Planteamiento Hidráulico
B80: Acta de compromiso de implementación de cédula de cultivo.
B81: Acta de libre disponibilidad de terreno.
B82: Panel Fotográfico
B85: 30. FECHA DE FORMULACIÓN
E86: 2017-08-30
B88: 31. FIRMAS
C94: Responsable de la Formulación del Perfil | G94: Responsable de la Unidad Formuladora

Sheet Selección de Datos (hidden)
B2: COSTO DE CAPACITACIÓN EN O&M | C2: 200 | D2: Costo unitario por ha
B3: COSTO DE ASISTENCIA TÉCNICA | C3: 500 | D3: Costo unitario por ha
B5: COSTO EXPEDIENTE TÉCNICO | C5: 1200 | D5: Costo unitario por ha
D9: Caracteristicas (*)
C10: PRESUPUESTO
C11: Componentes de Captación | D11: Toma en quebrada o río
D12: Toma en manantial
D13: Toma en canal
D14: Pozo
D15: Otros
D16: No comtempla
C18: Componentes de Aducción | D18: Canal de concreto
D19: Canal de mamposteria
D20: Tuberia de PVC
D21: Tuberia de HDPE
D22: Otros
D23: No comtempla
C25: Componentes de Conducción | D25: Tuberia de PVC
D26: Tuberia de HDPE
D27: Otros
D28: No comtempla
C30: Componentes de Distribución | D30: Tuberia de PVC
D31: Tuberia de HDPE
D32: Otros
D33: No comtempla
C35: Componentes de Almacenamiento | D35: Revestimiento con geomenbrana
D36: Revestimiento con concreto
D37: Revestimiento con mampostería
D38: Revestimiento con arcilla
D39: Otros
D40: No comtempla
C42: Componentes de Filtrado | D42: Cabezal de filtrado
D43: No comtempla
C45: Componente de Fertirrigación | D45: Inyector tipo venturi
D46: Tanque fertilizante
D47: Inyector hidráulico
D48: Otros
D49: No comtempla
C51: Componentes de Impulsión (Unidad de Bombeo) | D51: Bomba accionada con motor petrolero
D52: Bomba accionada con motor gasolinero
D53: Bomba accionada con motor eléctrico
D54: No comtempla
C56: Componentes de Automatización | D56: Semiautomático
D57: Automático
D58: No comtempla
C60: Obras de sedimentación | D60: Concreto
D61: Otros
D62: No comtempla
C64: Caseta de Control | D64: Material noble
D65: Material noble con techo de calamina
D66: Otros
D67: No comtempla
C69: Arcos de Riego | D69: Válvulas hidráulicas
D70: Válvulas esféricas
D71: Válvulas tipo angular
D72: Válvulas tipo compuerta
D73: Otros
D74: No comtempla
C76: Equipos de Control y Protección | D76: Varios
D77: No comtempla
C79: Obras de Arte | D79: Varios
D80: No comtempla
C82: Obras a Nivel Parcelario | D82: Riego por multicompuertas
D83: Riego por mangas
D84: Riego por goteo
D85: Riego por microaspersión
D86: Riego por aspersión fijo
D87: Riego por asperión semifijo
D88: Riego por aspersión móvil
C90: Tipo de Motor | D90: Eléctrico
D91: Combustión
B95: TIPO DE EJECUCIÓN
B96: ADMINISTRACIÓN DIRECTA
B97: ADMINISTRACIÓN INDIRECTA – POR CONTRATA
B98: ADMINISTRACIÓN INDIRECTA – ASOCIACIÓN PÚBLICA PRIVADO (APP)
B99: ADMINISTRACIÓN INDIRECTA - LEY N° 28585 PRT
B100: ADMINISTRACIÓN INDIRECTA – NÚCLEO EJECUTOR
B101: ADMINISTRACIÓN INDIRECTA – ley 29230 (OBRAS POR IMPUESTOS)
B103: CONVERSIÓN HP - Kw | C103: 0.7457
B104: DIAS DEL AÑO | C104: 365
B109: Motor eléctrico:
B110: Tarfia de consumo eléctrico (Soles/Kw x hr) | D110: 0.4
B112: Motor a combustión:
B113: Consumo promedio de combustible (gal/Hp x hr) | D113: 0.05
B114: Costo del combustible (Soles/gal) | D114: 12

Sheet Datos (hidden)
C2: DATOS A INGRESAR
E4: NOMBRE DEL PIP | F4: BALANCE HÍDRICO | G4: PRESUPUESTO | H4: FLUJO DE CAJA
C5: Ubicación Geográfica | E5: X
C6: Cédula de Cultivo | F6: X | G6: X | H6: X
C7: Periodo de Siembra y Cosecha | F7: X
C8: Área de Cultivo | F8: X | G8: X | H8: X
C9: Caudal Autorizado | F9: X
C10: Tiempo de Riego por ha | F10: X
C11: Frecuencia de Dotación | F11: X
C12: Tipo de Riego Tecnificado | E12: X | F12: X | G12: X | H12: X
C13: Uso de Energía a Utilizar | G13: X | H13: X
C15: BASE DE DATOS BALANCE HÍDRICO
E17: UNIDAD DE MEDIDA | F17: TIEMPO
C18: ETO | E18: mm/mes | F18: Mensual | G18: CROPWAT
C19: Precipitación Efectiva | E19: mm/mes | F19: Mensual | G19: CROPWAT
C20: Kc | F20: Mensual | G20: MANUAL N° 56 DE LA FAO - CROPWAT
C21: Eficiencia de Riego | E21: % | F21: Mensual
C24: BASE DE DATOS FLUJO DE CAJA
C26: Costos de Producción | E26: Soles/ha | F26: Campaña o Anual
C27: Estimación del Incremento del Costo de Producción | E27: Soles/ha | F27: Campaña o Anual
C28: Rendimiento Agrícola | E28: Kg/ha | F28: Campaña o Anual
C29: Estimación de Incremento del Rendimiento | E29: Kg/ha | F29: Campaña o Anual
C30: Precio de Venta en Chacra | E30: Soles/Kg | F30: Anual
F32: Caracteristicas (*)
C33: PRESUPUESTO | D33: Unidad | E33: metrado | G33: Costo
C34: Componentes de Captación | D34: und | E34: 1 | F34: Toma en quebrada o rio | G34: 5500
F35: Toma en manantial
F36: Toma en canal
F37: Otros
C39: Componentes de Aducción | D39: m | E39: 20 | F39: Canal de concreto
F40: Canal mamposteria
F41: Tuberia de pvc
F42: Tuberia de hdpe
F43: Otros
C46: Componentes de Conducción | D46: m | E46: 800 | F46: Tuberia de pvc
F47: Tuberia de hdpe
F48: Otros
C50: Componentes de Distribución | F50: Tuberia de pvc
F51: Tuberia de hdpe
F52: Otros
C54: Componentes de Almacenamiento | D54: m3 | E54: 1500 | F54: Revestimiento con geoemenbrana | G54: 54000
F55: Revestimiento con concreto
F56: Revestimiento con mampostería
F57: Revestimiento con arcilla
F58: Otros
C60: Componentes de Filtrado | D60: 1 | E60: und | F60: Capacidad de filtrado
C62: Componente de Fertirrigación | D62: 1 | E62: und | F62: Inyector tipo venturi
F63: Tanque fertilizante
F64: Inyector hidráulico
F65: Otros
C67: Componentes de Impulsión (Unidad de Bombeo) | D67: 1 | E67: und | F67: Bomba accionada con motor petrolero
F68: Bomba accionada con motor gasolinero
F69: Bomba accionada con motor eléctrico
C71: Componentes de Automatización | D71: 1 | E71: und | F71: Semiautomático
F72: Automático
C74: Equipos de Control y Protección | D74: 1 | E74: gbl | F74: Global
C76: Obras de sedimentación | D76: 1 | E76: und | F76: Concreto
F77: Otros
C79: Caseta de Control | D79: und | E79: 1 | F79: Material noble
F80: Material noble con techo de calamina
F81: Otros
C83: Obras de Arte | D83: 1 | E83: gbl | F83: Global
C85: Arcos de Riego | D85: 1 | E85: gbl | F85: Válvulas Hidráulicas
F86: Válvulas Esféricas
F87: Válvulas Tipo Angular
C88: Equipos Especiales | F88: Válvulas Tipo Compuerta
C89: Obras a Nivel Parcelario | F89: Otros
C93: (*) Descripción en forma breve y concisa

Sheet Ppto Ref (hidden)
A1: Presupuesto Desagregado
A2: Obra
A3: Cliente | C3: AREA (HA) | D3: 15
A4: Lugar | B4: HUANCAVELICA - CHURCAMPA - CHURCAMPA
A5: Item | B5: Descripción | C5: Und. | D5: Metrado | E5: Precio S/. | F5: Parcial S/.
A6: 01.00 | B6: OBRAS PROVISIONALES | F6: 1800 | K6: =+F6/F311 -> 0.007192848582
A7: 01.01 | B7: CARTEL DE OBRA | C7: UND | D7: 1 | E7: 700 | F7: 700
A8: 01.02 | B8: CAMPAMENTO PROVISIONAL DE LA OBRA (1) | C8: GLB | D8: 1 | E8: 1100 | F8: 1100
A9: 02.00 | B9: TOMA CAPTACION | F9: 1115.22
A10: 02.01 | B10: TRABAJOS PRELIMINARES | F10: 11.27
A11: 02.01.01 | B11: LIMPIEZA DE TERRENO MANUAL | C11: M² | D11: 4 | E11: 0.95 | F11: 3.8
A12: 02.01.02 | B12: TRAZO Y REPLANTEO | C12: M² | D12: 3 | E12: 2.49 | F12: 7.47
A13: 02.02 | B13: MOVIMIENTO DE TIERRAS | F13: 30.74
A14: 02.02.01 | B14: EXCAVACION DE ESTRUCTURAS | C14: M3 | D14: 1.34 | E14: 18.9 | F14: 25.33
A15: 02.02.02 | B15: REFINE DE CARAS LATERALES | C15: M² | D15: 4.29 | E15: 1.26 | F15: 5.41
A16: 02.03 | B16: OBRAS DE CONCRETO ARMADO | F16: 634.58
A17: 02.03.01 | B17: CONCRETO F'C=175 KG/CM2 SIN MEZCLADORA (HORMIGON) | C17: M3 | D17: 0.53 | E17: 426.39 | F17: 225.99
A18: 02.03.02 | B18: ENCOFRADO Y DESENCOFRADO MANUAL | C18: M² | D18: 7.71 | E18: 24.62 | F18: 189.82
A19: 02.03.03 | B19: ACERO ESTRUCTURAL Fy = 4200 kg/ cm2 | C19: KG | D19: 30.64 | E19: 7.14 | F19: 218.77
A20: 02.04 | B20: REVOQUES ENLUCIDOS Y MOLDURAS | F20: 139.48
A21: 02.04.01 | B21: TARRAJEO CON IMPERMEABILIZANTE 1.3. e=1.5cm | C21: M² | D21: 3.22 | E21: 15.93 | F21: 51.29
A22: 02.04.02 | B22: TARRAJEO CON MORTERO 1:3 e= 1.5cm | C22: M² | D22: 3.49 | E22: 25.27 | F22: 88.19
A23: 02.05 | B23: ACCESORIOS PARA LA CAPTACIÓN | F23: 299.15
A24: 02.05.01 | B24: INSTALACION DE COMPUERTA METALICA 0.30 x 1.10 M | C24: UND | D24: 1 | E24: 210.9 | F24: 210.9
A25: 02.05.02 | B25: ACCESORIOS DE CAPTACION | C25: GLB | D25: 1 | E25: 88.25 | F25: 88.25
A26: 03.00 | B26: LINEA DE CONDUCCION (10 M) | F26: 351.02
A27: 03.01 | B27: TRABAJOS PRELIMINARES | F27: 12.4
A28: 03.01.01 | B28: LIMPIEZA DE TERRENO MANUAL LINEAL | C28: ML | D28: 10 | E28: 0.32 | F28: 3.2
A29: 03.01.02 | B29: TRAZO Y REPLANTEO LONGITUDINAL | C29: ML | D29: 10 | E29: 0.92 | F29: 9.2
A30: 03.02 | B30: MOVIMIENTO DE TIERRAS | F30: 70.7
A31: 03.02.01 | B31: EXCAVACION DE ZANJA EN MATERIAL SUELTO, PARA TUB | C31: M3 | D31: 3.5 | E31: 12.6 | F31: 44.1
A32: 03.02.02 | B32: REFINE Y NIVELACION DE ZANJA EN TERRENO NORMAL PARA TUB. =< 200 mm. | C32: ML | D32: 10 | E32: 0.95 | F32: 9.5
A33: 03.02.03 | B33: RELLENO CON MATERIAL ZARANDEADO | C33: M3 | D33: 1.5 | E33: 3.84 | F33: 5.76
A34: 03.02.04 | B34: RELLENO CON MATERIAL PROPIO | C34: M3 | D34: 1.5 | E34: 7.56 | F34: 11.34
A35: 03.03 | B35: TUBERIAS PVC-U UF | F35: 187.92
A36: 03.03.01 | B36: INSTALACION DE TUBERIA PVC-U DN: 110 mm PN-5 | C36: ML | D36: 12 | E36: 15.66 | F36: 187.92
A37: 03.04 | B37: ACCESORIOS EN LINEA DE CONDUCCIÓN | F37: 80
A38: 03.04.01 | B38: ACCESORIOS PVC UF-U 110mm | C38: GLB | D38: 1 | E38: 80 | F38: 80
A39: 04.00 | B39: RESERVORIO DE GEOMEMBRANA (240 M3) | F39: 29054.76
A40: 04.01 | B40: TRABAJOS PRELIMINARES | F40: 770.55
A41: 04.01.01 | B41: LIMPIEZA DE TERRENO MANUAL | C41: M² | D41: 300 | E41: 0.95 | F41: 285
A42: 04.01.02 | B42: TRAZO Y REPLANTEO | C42: M² | D42: 195 | E42: 2.49 | F42: 485.55
A43: 04.02 | B43: MOVIMIENTO DE TIERRAS | F43: 15167.76
A44: 04.02.01 | B44: EXCAVACION MANUAL PARA RESERVORIO | C44: M3 | D44: 396 | E44: 20 | F44: 7920
A45: 04.02.02 | B45: SERVICIO DE VOLADURA EN ROCAS MEDIANAS | C45: PTO | D45: 80 | E45: 2.99 | F45: 239.2
A46: 04.02.03 | B46: ELIMINACION MANUAL DEL MATERIAL EXCAVADO MAX. 30 M. | C46: M3 | D46: 200 | E46: 9.16 | F46: 1832
A47: 04.02.04 | B47: EXCAVACION DE ZANJA EN MATERIAL SUELTO, PARA TUB | C47: M3 | D47: 14 | E47: 12.6 | F47: 176.4
A48: 04.02.05 | B48: RELLENO CON MATERIAL PROPIO | C48: M3 | D48: 38 | E48: 7.56 | F48: 287.28
A49: 04.02.06 | B49: PERFILADO Y COMPACTADO CON EQUIPO Y RELLENO CON MATERIAL PROPIO | C49: M² | D49: 269 | E49: 17.52 | F49: 4712.88
A50: 04.03 | B50: IMPERMEABILIZACIÓN DE RESERVORIO CON GEOMEMBRANA PVC | F50: 11604.62
A51: 04.03.01 | B51: TARRAJEO CON ARCILLA MAS ICHU E=5.0 CM TALUD, 10 CM BASE, DEL RESERVORIO | C51: M² | D51: 211 | E51: 11.88 | F51: 2506.68
A52: 04.03.02 | B52: SUMINISTRO E INSTALACION DE GEOMEMBRANA PVC DE 1.0 mm DE ESPESOR. | C52: M² | D52: 298 | E52: 30.53 | F52: 9097.94
A53: 04.04 | B53: ACCESORIOS EN RESERVORIO | F53: 526.48
A54: 04.04.01 | B54: ACCESORIOS EN EL RESERVORIO | C54: GLB | D54: 1 | E54: 526.48 | F54: 526.48
A55: 04.05 | B55: CERCO PERIMÉTRICO | F55: 985.35
A56: 04.05.01 | B56: EXCAVACION DE ESTRUCTURAS | C56: M3 | D56: 1.17 | E56: 18.9 | F56: 22.11
A57: 04.05.02 | B57: CERCO PERIMETRICO CON ALAMBRE DE PUAS | C57: ML | D57: 64 | E57: 14.41 | F57: 922.24
A58: 04.05.03 | B58: PUERTA DE MADERA RÚSTICA | C58: UND | D58: 1 | E58: 41 | F58: 41
A59: 05.00 | B59: CAJA DE VALVULA RESERVORIO (02 UND) | F59: 1306.89
A60: 05.01 | B60: TRABAJOS PRELIMINARES | F60: 5.09
A61: 05.01.01 | B61: TRAZO Y REPLANTEO | C61: M² | D61: 1.28 | E61: 2.49 | F61: 3.19
A62: 05.01.02 | B62: LIMPIEZA DE TERRENO MANUAL | C62: M² | D62: 2 | E62: 0.95 | F62: 1.9
A63: 05.02 | B63: MOVIMIENTO DE TIERRAS | F63: 38.78
A64: 05.02.01 | B64: EXCAVACION DE ESTRUCTURAS | C64: M3 | D64: 1.62 | E64: 18.9 | F64: 30.62
A65: 05.02.02 | B65: REFINE DE CARAS LATERALES | C65: M² | D65: 6.48 | E65: 1.26 | F65: 8.16
A66: 05.03 | B66: OBRAS DE CONCRETO ARMADO | F66: 218.39
A67: 05.03.01 | B67: CONCRETO F'C=175 KG/CM2 SIN MEZCLADORA (HORMIGON) | C67: M3 | D67: 0.22 | E67: 426.39 | F67: 93.81
A68: 05.03.02 | B68: ENCOFRADO Y DESENCOFRADO MANUAL | C68: M² | D68: 5.06 | E68: 24.62 | F68: 124.58
A69: 05.04 | B69: REVOQUES ENLUCIDOS Y MOLDURAS | F69: 111.19
A70: 05.04.01 | B70: TARRAJEO CON MORTERO 1:3 e= 1.5cm | C70: M² | D70: 4.4 | E70: 25.27 | F70: 111.19
A71: 05.05 | B71: ACCESORIOS | F71: 933.44
A72: 05.05.01 | B72: INSTALACION DE VALVULA COMPUERTA FO. FDO. LUFLEX 110 mm. | C72: UND | D72: 1 | E72: 367.32 | F72: 367.32
A73: 05.05.02 | B73: INSTALACION DE VALVULA COMPUERTA FO. FDO. LUFLEX 90 mm. | C73: UND | D73: 1 | E73: 347.32 | F73: 347.32
A74: 05.05.03 | B74: INSTALACION DE TAPA METÁLICA DE 0.50x0.50 m. | C74: UND | D74: 2 | E74: 109.4 | F74: 218.8
A75: 06.00 | B75: CABEZAL DE FILTRADO | F75: 4333.29
A76: 06.01 | B76: TRABAJOS PRELIMINARES | F76: 22.16
A77: 06.01.01 | B77: LIMPIEZA DE TERRENO MANUAL | C77: M² | D77: 12 | E77: 0.95 | F77: 11.4
A78: 06.01.02 | B78: TRAZO Y REPLANTEO | C78: M² | D78: 4.32 | E78: 2.49 | F78: 10.76
A79: 06.02 | B79: MOVIMIENTO DE TIERRAS | F79: 65.39
A80: 06.02.01 | B80: EXCAVACION DE ESTRUCTURAS | C80: M3 | D80: 3.46 | E80: 18.9 | F80: 65.39
A81: 06.03 | B81: OBRAS DE CONCRETO ARMADO | F81: 256.85
A82: 06.03.01 | B82: CONCRETO F'C=175 KG/CM2 SIN MEZCLADORA (HORMIGON) | C82: M3 | D82: 0.51 | E82: 426.39 | F82: 217.46
A83: 06.03.02 | B83: ENCOFRADO Y DESENCOFRADO MANUAL | C83: M² | D83: 1.6 | E83: 24.62 | F83: 39.39
A84: 06.04 | B84: ACCESORIOS DE CABEZAL DE FILTRADO | F84: 3988.89
A85: 06.04.01 | B85: SUMINISTRO DE FILTRO DE ANILLOS DE 3" | C85: UND | D85: 2 | E85: 720 | F85: 1440
A86: 06.04.02 | B86: SUMINISTRO E INSTALACION DE VALVULA PVC TIPO MARIPOSA DE 90 MM | C86: UND | D86: 4 | E86: 317.36 | F86: 1269.44
A87: 06.04.03 | B87: INSTALACION DE COLLARIN DE 90 mm. x 1" | C87: UND | D87: 1 | E87: 21.9 | F87: 21.9
A88: 06.04.04 | B88: INSTALACION DE VAL. DE AIRE 2" (DOBLE EFECTO) | C88: UND | D88: 1 | E88: 254.75 | F88: 254.75
A89: 06.04.05 | B89: ACCESORIOS DE CABEZAL DE RIEGO | C89: UND | D89: 1 | E89: 1002.8 | F89: 1002.8
A90: 07.00 | B90: LINEA DE TUBERIA PRINCIPAL (1098 m) | F90: 27836.83
A91: 07.01 | B91: TRABAJOS PRELIMINARES | F91: 1460.34
A92: 07.01.01 | B92: LIMPIEZA DE TERRENO MANUAL LINEAL | C92: ML | D92: 1098 | E92: 0.32 | F92: 351.36
A93: 07.01.02 | B93: TRAZO Y REPLANTEO LONGITUDINAL (M) | C93: ML | D93: 1098 | E93: 1.01 | F93: 1108.98
A94: 07.02 | B94: MOVIMIENTO DE TIERRAS | F94: 8348.02
A95: 07.02.01 | B95: EXCAVACION DE ZANJA EN MATERIAL SUELTO, PARA TUB | C95: M3 | D95: 179.4 | E95: 12.6 | F95: 2260.44
A96: 07.02.02 | B96: EXCAVACION EN ROCA SUELTA | C96: M3 | D96: 150 | E96: 20 | F96: 3000
A97: 07.02.03 | B97: REFINE Y NIVELACION DE ZANJA EN TERRENO NORMAL PARA TUB. <= 110 mm. | C97: ML | D97: 1098 | E97: 0.76 | F97: 834.48
A98: 07.02.04 | B98: RELLENO CON MATERIAL ZARANDEADO | C98: M3 | D98: 197.64 | E98: 3.84 | F98: 758.94
A99: 07.02.05 | B99: RELLENO CON MATERIAL PROPIO | C99: M3 | D99: 197.64 | E99: 7.56 | F99: 1494.16
A100: 07.03 | B100: TUBERIAS PVC-U UF | F100: 13733.77
A101: 07.03.01 | B101: INSTALACION DE TUBERIA PVC-U DN: 90 mm PN-5 | C101: ML | D101: 761 | E101: 11.4 | F101: 8675.4
A102: 07.03.02 | B102: INSTALACION DE TUBERIA PVC-U DN: 90 mm PN-7.5 | C102: ML | D102: 337 | E102: 15.01 | F102: 5058.37
A103: 07.04 | B103: ACCESORIOS | F103: 2120
A104: 07.04.01 | B104: ACCESORIOS PVC UF-U 90mm | C104: GLB | D104: 1 | E104: 2120 | F104: 2120
A105: 07.05 | B105: PRUEBA HIDRAULICA | F105: 669.78
A106: 07.05.01 | B106: PRUEBA HIDRAULICA A PRESION EN TUBERIAS <= 110 mm | C106: ML | D106: 1098 | E106: 0.61 | F106: 669.78
A107: 07.06 | B107: DADOS DE ANCLAJE | F107: 1504.92
A108: 07.06.01 | B108: CONCRETO F'C=140 KG/CM2 PARA DADO DE ANCLAJE | C108: M3 | D108: 2.4 | E108: 338.3 | F108: 811.92
A109: 07.06.02 | B109: COLOCACION DE DADOS DE ANCLAJE | C109: UND | D109: 50 | E109: 13.86 | F109: 693
A110: 08.00 | B110: VALVULA DE CONTROL PRINCIPAL (10 UND) | F110: 5913.46
A111: 08.01 | B111: TRABAJOS PRELIMINARES | F111: 78
A112: 08.01.01 | B112: LIMPIEZA DE TERRENO MANUAL | C112: M² | D112: 10 | E112: 0.95 | F112: 9.5
A113: 08.01.02 | B113: TRAZO Y REPLANTEO PARA UBICACION DE ESTRUCTURAS | C113: UND | D113: 10 | E113: 6.85 | F113: 68.5
A114: 08.02 | B114: MOVIMIENTO DE TIERRAS | F114: 115.92
A115: 08.02.01 | B115: EXCAVACION DE ESTRUCTURAS | C115: M3 | D115: 5.6 | E115: 18.9 | F115: 105.84
A116: 08.02.02 | B116: REFINE DE CARAS LATERALES | C116: M² | D116: 8 | E116: 1.26 | F116: 10.08
A117: 08.03 | B117: OBRAS DE CONCRETO | F117: 493.94
A118: 08.03.01 | B118: ENCOFRADO Y DESENCOFRADO MANUAL | C118: M² | D118: 6.9 | E118: 24.62 | F118: 169.88
A119: 08.03.02 | B119: CONCRETO F'C=175 KG/CM2 SIN MEZCLADORA (HORMIGON) | C119: M3 | D119: 0.76 | E119: 426.39 | F119: 324.06
A120: 08.04 | B120: VALVULA DE CONTROL | F120: 3173.6
A121: 08.04.01 | B121: SUMINISTRO E INSTALACION DE VALVULA PVC TIPO MARIPOSA DE 90 MM | C121: UND | D121: 10 | E121: 317.36 | F121: 3173.6
A122: 08.05 | B122: ACCESORIOS | F122: 2052
A123: 08.05.01 | B123: INSTALACION DE COLLARIN DE 90 mm. x 1" | C123: UND | D123: 10 | E123: 21.9 | F123: 219
A124: 08.05.02 | B124: INSTALACION DE VAL. DE AIRE 1" (SIMPLE EFECTO) | C124: UND | D124: 10 | E124: 48.22 | F124: 482.2
A125: 08.05.03 | B125: CAJA PE DE PROTECCION JUMBO PARA VALVULAS DE CONTROL | C125: UND | D125: 10 | E125: 135.08 | F125: 1350.8
A126: 09.00 | B126: CAMARA ROMPE PRESION CON CONTROL DE NIVEL (4 UND) | F126: 9514.96
A127: 09.01 | B127: TRABAJOS PRELIMINARES | F127: 49.81
A128: 09.01.01 | B128: TRAZO Y REPLANTEO PARA UBICACION DE ESTRUCTURAS | C128: UND | D128: 4 | E128: 6.85 | F128: 27.4
A129: 09.01.02 | B129: TRAZO Y REPLANTEO | C129: M² | D129: 9 | E129: 2.49 | F129: 22.41
A130: 09.02 | B130: MOVIMIENTO DE TIERRAS | F130: 217.67
A131: 09.02.01 | B131: EXCAVACION DE ESTRUCTURAS | C131: M3 | D131: 10.13 | E131: 18.9 | F131: 191.46
A132: 09.02.02 | B132: REFINE DE CARAS LATERALES | C132: M² | D132: 20.8 | E132: 1.26 | F132: 26.21
A133: 09.03 | B133: OBRAS DE CONCRETO ARMADO | F133: 3412.5
A134: 09.03.01 | B134: SOLADO DE CONCRETO FC=100 KG/CM2 SIN MEZCLADORA (HORMIGON) | C134: M3 | D134: 0.34 | E134: 300.15 | F134: 102.05
A135: 09.03.02 | B135: ENCOFRADO Y DESENCOFRADO MANUAL | C135: M² | D135: 40.2 | E135: 24.62 | F135: 989.72
A136: 09.03.03 | B136: CONCRETO F'C=175 KG/CM2 SIN MEZCLADORA (HORMIGON) | C136: M3 | D136: 0.57 | E136: 426.39 | F136: 243.04
A137: 09.03.04 | B137: CONCRETO F'C=210 KG/CM2 SIN MEZCLADORA (HORMIGON) | C137: M3 | D137: 2.43 | E137: 465.93 | F137: 1132.21
A138: 09.03.05 | B138: ACERO ESTRUCTURAL Fy = 4200 kg/ cm2 | C138: KG | D138: 132.42 | E138: 7.14 | F138: 945.48
A139: 09.04 | B139: REVOQUES ENLUCIDOS Y MOLDURAS | F139: 1214.22
A140: 09.04.01 | B140: TARRAJEO CON IMPERMEABILIZANTE 1.3. e=1.5cm | C140: M² | D140: 17.6 | E140: 15.93 | F140: 280.37
A141: 09.04.02 | B141: TARRAJEO CON MORTERO 1:3 e= 1.5cm | C141: M² | D141: 24.64 | E141: 25.27 | F141: 622.65
A142: 09.04.03 | B142: PINTURA ESMALTE EXTERIOR | C142: M² | D142: 24.64 | E142: 12.63 | F142: 311.2
A143: 09.05 | B143: ACCESORIOS DE CRP | F143: 4620.76
A144: 09.05.01 | B144: SUMINISTRO E INSTALACION DE VALV. HIDRAULICA DE 3" | C144: UND | D144: 4 | E144: 616.36 | F144: 2465.44
A145: 09.05.02 | B145: INSTALACION DE TAPA METÁLICA DE 0.90x1.10 m. | C145: UND | D145: 4 | E145: 180.91 | F145: 723.64
A146: 09.05.03 | B146: ACCESORIOS DE CRP 3"/90mm | C146: UND | D146: 4 | E146: 357.92 | F146: 1431.68
A147: 10.00 | B147: REGULADORAS DE PRESION PRV T-I -3" (7 UND) | F147: 5731.8
A148: 10.01 | B148: TRABAJOS PRELIMINARES | F148: 47.95
A149: 10.01.01 | B149: TRAZO Y REPLANTEO PARA UBICACION DE ESTRUCTURAS | C149: UND | D149: 7 | E149: 6.85 | F149: 47.95
A150: 10.02 | B150: MOVIMIENTO DE TIERRAS | F150: 72.2
A151: 10.02.01 | B151: EXCAVACION DE ESTRUCTURAS | C151: M3 | D151: 3.82 | E151: 18.9 | F151: 72.2
A152: 10.03 | B152: DADOS DE ANCLAJE | F152: 363.19
A153: 10.03.01 | B153: CONCRETO F'C=140 KG/CM2 PARA DADO DE ANCLAJE | C153: M3 | D153: 0.5 | E153: 338.3 | F153: 169.15
A154: 10.03.02 | B154: COLOCACION DE DADOS DE ANCLAJE | C154: UND | D154: 14 | E154: 13.86 | F154: 194.04
A155: 10.04 | B155: ACCESORIOS PRV | F155: 5248.46
A156: 10.04.01 | B156: SUMINISTRO DE REGULADORA PRV PRXF-LV 30 PSI 3" | C156: UND | D156: 7 | E156: 640 | F156: 4480
A157: 10.04.02 | B157: ACCESORIOS PRV 3" B/1 EN TUB. 63 MM | C157: UND | D157: 7 | E157: 109.78 | F157: 768.46
A158: 11.00 | B158: REGULADORAS DE PRESION PRV T-II - 3"(6 UND) | F158: 10585.66
A159: 11.01 | B159: TRABAJOS PRELIMINARES | F159: 41.1
A160: 11.01.01 | B160: TRAZO Y REPLANTEO PARA UBICACION DE ESTRUCTURAS | C160: UND | D160: 6 | E160: 6.85 | F160: 41.1
A161: 11.02 | B161: MOVIMIENTO DE TIERRAS | F161: 79.57
A162: 11.02.01 | B162: EXCAVACION DE ESTRUCTURAS | C162: M3 | D162: 4.21 | E162: 18.9 | F162: 79.57
A163: 11.03 | B163: OBRAS DE CONCRETO ARMADO | F163: 311.79
A164: 11.03.01 | B164: CONCRETO F'C=140 KG/CM2 PARA DADO DE ANCLAJE | C164: M3 | D164: 0.43 | E164: 338.3 | F164: 145.47
A165: 11.03.02 | B165: COLOCACION DE DADOS DE ANCLAJE | C165: UND | D165: 12 | E165: 13.86 | F165: 166.32
A166: 11.04 | B166: ACCESORIOS PRV | F166: 10153.2
A167: 11.04.01 | B167: ACCESORIOS PRV 3" B/2 EN TUB. 90 MM | C167: UND | D167: 6 | E167: 412.2 | F167: 2473.2
A168: 11.04.02 | B168: SUMINISTRO DE REGULADORA PRV PRXF-LV 30 PSI 3" | C168: UND | D168: 2 | E168: 1280 | F168: 2560
A169: 11.04.03 | B169: SUMINISTRO DE REGULADORA PRV PRXF-LV 40 PSI 3" | C169: UND | D169: 4 | E169: 1280 | F169: 5120
A170: 12.00 | B170: REGULADORAS DE PRESION PRV T-II 1 1/2 (5 UND) | F170: 1721.38
A171: 12.01 | B171: TRABAJOS PRELIMINARES | F171: 34.25
A172: 12.01.01 | B172: TRAZO Y REPLANTEO PARA UBICACION DE ESTRUCTURAS | C172: UND | D172: 5 | E172: 6.85 | F172: 34.25
A173: 12.02 | B173: MOVIMIENTO DE TIERRAS | F173: 66.34
A174: 12.02.01 | B174: EXCAVACION DE ESTRUCTURAS | C174: M3 | D174: 3.51 | E174: 18.9 | F174: 66.34
A175: 12.03 | B175: OBRAS DE CONCRETO ARMADO | F175: 260.39
A176: 12.03.01 | B176: CONCRETO F'C=140 KG/CM2 PARA DADO DE ANCLAJE | C176: M3 | D176: 0.36 | E176: 338.3 | F176: 121.79
A177: 12.03.02 | B177: COLOCACION DE DADOS DE ANCLAJE | C177: UND | D177: 10 | E177: 13.86 | F177: 138.6
A178: 12.04 | B178: ACCESORIOS PRV | F178: 1360.4
A179: 12.04.01 | B179: SUMINISTRO DE REGULADORA PRV PRXF-LV 30 PSI 1" | C179: UND | D179: 5 | E179: 120 | F179: 600
A180: 12.04.02 | B180: ACCESORIOS PRV 1" B/2 EN TUB. 1 1/2" | C180: UND | D180: 5 | E180: 152.08 | F180: 760.4
A181: 13.00 | B181: VALVULA DE AIRE DE 1" (5 UND) | F181: 978.49
A182: 13.01 | B182: TRABAJOS PRELIMINARES | F182: 34.25
A183: 13.01.01 | B183: TRAZO Y REPLANTEO PARA UBICACION DE ESTRUCTURAS | C183: UND | D183: 5 | E183: 6.85 | F183: 34.25
A184: 13.02 | B184: MOVIMIENTO DE TIERRAS | F184: 7.94
A185: 13.02.01 | B185: EXCAVACION DE ESTRUCTURAS | C185: M3 | D185: 0.42 | E185: 18.9 | F185: 7.94
A186: 13.03 | B186: OBRAS DE CONCRETO ARMADO | F186: 69.45
A187: 13.03.01 | B187: ENCOFRADO Y DESENCOFRADO MANUAL | C187: M² | D187: 0.36 | E187: 24.62 | F187: 8.86
A188: 13.03.02 | B188: CONCRETO F'C=140 KG/CM2 SIN MEZCLADORA (HORMIGON) | C188: M3 | D188: 0.15 | E188: 403.93 | F188: 60.59
A189: 13.04 | B189: ACCESORIOS VAL. AIRE | F189: 866.85
A190: 13.04.01 | B190: INSTALACION DE COLLARIN DE 90 mm. x 1" | C190: UND | D190: 5 | E190: 21.9 | F190: 109.5
A191: 13.04.02 | B191: INSTALACION DE VAL. DE AIRE 1" (DOBLE EFECTO) | C191: UND | D191: 5 | E191: 114.75 | F191: 573.75
A192: 13.04.03 | B192: CONO PE DE PROTECCION DE PARA VALVULAS DE AIRE 1 | C192: UND | D192: 5 | E192: 36.72 | F192: 183.6
A193: 14.00 | B193: LINEA DE TUBERIA DISTRIBUIDORA (2857 m) | F193: 56148.63
A194: 14.01 | B194: TRABAJOS PRELIMINARES | F194: 3799.81
A195: 14.01.01 | B195: LIMPIEZA DE TERRENO MANUAL LINEAL | C195: ML | D195: 2857 | E195: 0.32 | F195: 914.24
A196: 14.01.02 | B196: TRAZO Y REPLANTEO LONGITUDINAL (M) | C196: ML | D196: 2857 | E196: 1.01 | F196: 2885.57
A197: 14.02 | B197: MOVIMIENTO DE TIERRAS | F197: 20076.25
A198: 14.02.01 | B198: EXCAVACION DE ZANJA EN MATERIAL SUELTO, PARA TUB | C198: M3 | D198: 557.1 | E198: 12.6 | F198: 7019.46
A199: 14.02.02 | B199: EXCAVACION EN ROCA SUELTA | C199: M3 | D199: 300 | E199: 20 | F199: 6000
A200: 14.02.03 | B200: REFINE Y NIVELACION DE ZANJA EN TERRENO NORMAL PARA TUB. <= 110 mm. | C200: ML | D200: 2857 | E200: 0.76 | F200: 2171.32
... 113 more rows
